{"text_format":"1","workbook":"xlsx","n_sheets":5,"sheets":["Feuil1","Feuil2","Feuil3","Feuil4","Feuil5"],"not_rendered":{"charts":0,"images":1,"macros":1,"external_links":0,"defined_names":13,"comments":0,"pivot_tables":0},"unopened":[],"bounds":{"document_bytes":16777216,"sheet_cells":100000,"rows_first":2000,"rows_last":500,"rows_between":2000,"halvings":0,"cell_chars":16384,"cell_head_chars":4096},"cells_cut":0,"cells_raw":0,"read":"whole","date_system":"1900"}

{"sheet":"Feuil1","index":0,"n_rows":304,"n_cols":37,"rows_kept":304,"cut":false,"hidden":false,"merged":[[36,36,36,38],[29,36,29,38],[30,14,30,16],[31,14,31,16],[21,32,21,34],[22,32,22,34],[18,32,18,34],[19,32,19,34],[20,32,20,34],[24,32,24,34],[25,32,25,34],[26,32,26,34],[27,32,27,34],[35,32,35,34],[36,32,36,34],[33,32,33,34],[34,32,34,34],[8,14,8,16],[9,14,9,16],[30,32,30,34],[31,32,31,34],[32,32,32,34],[0,31,0,39],[10,0,10,2],[10,18,10,26],[10,4,10,12],[10,14,10,16],[23,32,23,34],[10,31,11,39],[12,31,13,39],[28,36,28,38],[9,4,9,12],[3,2,3,4],[8,4,8,12],[8,18,8,26],[9,18,9,26],[8,0,8,2],[9,0,9,2],[28,32,28,34],[29,32,29,34],[57,32,57,34],[48,32,48,34],[49,32,49,34],[50,32,50,34],[51,32,51,34],[52,32,52,34],[53,32,53,34],[54,32,54,34],[55,32,55,34],[56,32,56,34],[47,32,47,34],[38,32,38,34],[39,32,39,34],[40,32,40,34],[41,32,41,34],[43,32,43,34],[42,32,42,34],[44,32,44,34],[37,32,37,34],[45,32,45,34],[46,32,46,34],[67,32,67,34],[58,32,58,34],[59,32,59,34],[60,32,60,34],[61,32,61,34],[62,32,62,34],[63,32,63,34],[64,32,64,34],[88,32,88,34],[77,32,77,34],[68,32,68,34],[69,32,69,34],[70,32,70,34],[71,32,71,34],[72,32,72,34],[73,32,73,34],[74,32,74,34],[75,32,75,34],[76,32,76,34],[66,32,66,34],[65,32,65,34],[89,32,89,34],[90,32,90,34],[91,32,91,34],[87,32,87,34],[78,32,78,34],[79,32,79,34],[80,32,80,34],[81,32,81,34],[82,32,82,34],[83,32,83,34],[84,32,84,34],[85,32,85,34],[86,32,86,34],[96,32,96,34],[98,32,98,34],[99,32,99,34],[100,32,100,34],[97,32,97,34],[92,32,92,34],[93,32,93,34],[94,32,94,34],[95,32,95,34],[103,32,103,34],[104,32,104,34],[105,32,105,34],[107,32,107,34],[101,32,101,34],[106,32,106,34],[117,32,117,34],[108,32,108,34],[109,32,109,34],[110,32,110,34],[111,32,111,34],[116,32,116,34],[112,32,112,34],[113,32,113,34],[114,32,114,34],[115,32,115,34],[118,32,118,34],[119,32,119,34],[120,32,120,34],[121,32,121,34],[123,32,123,34],[122,32,122,34],[32,36,32,38],[33,36,33,38],[45,36,45,38],[46,36,46,38],[47,36,47,38],[102,32,102,34],[37,36,37,38],[38,36,38,38],[41,36,41,38],[42,36,42,38],[43,36,43,38],[44,36,44,38],[48,36,48,38],[67,36,67,38],[68,36,68,38],[66,36,66,38],[39,36,39,38],[79,36,79,38],[154,32,154,34],[155,32,155,34],[144,32,144,34],[145,32,145,34],[146,32,146,34],[147,32,147,34],[129,32,129,34],[124,32,124,34],[125,32,125,34],[126,32,126,34],[153,32,153,34],[137,32,137,34],[128,32,128,34],[134,32,134,34],[135,32,135,34],[136,32,136,34],[127,32,127,34],[130,32,130,34],[131,32,131,34],[132,32,132,34],[133,32,133,34],[159,32,159,34],[18,36,18,38],[19,36,19,38],[20,36,20,38],[21,36,21,38],[22,36,22,38],[23,36,23,38],[24,36,24,38],[30,36,30,38],[31,36,31,38],[158,32,158,34],[140,32,140,34],[141,32,141,34],[151,32,151,34],[152,32,152,34],[157,32,157,34],[25,36,25,38],[26,36,26,38],[27,36,27,38],[40,36,40,38],[138,32,138,34],[139,32,139,34],[34,36,34,38],[35,36,35,38],[156,32,156,34],[148,32,148,34],[149,32,149,34],[150,32,150,34],[143,32,143,34],[142,32,142,34],[56,36,56,38],[49,36,49,38],[59,36,59,38],[50,36,50,38],[51,36,51,38],[52,36,52,38],[53,36,53,38],[54,36,54,38],[55,36,55,38],[57,36,57,38],[58,36,58,38],[69,36,69,38],[60,36,60,38],[61,36,61,38],[62,36,62,38],[63,36,63,38],[64,36,64,38],[65,36,65,38],[70,36,70,38],[71,36,71,38],[72,36,72,38],[73,36,73,38],[74,36,74,38],[75,36,75,38],[76,36,76,38],[77,36,77,38],[78,36,78,38],[89,36,89,38],[80,36,80,38],[81,36,81,38],[82,36,82,38],[83,36,83,38],[84,36,84,38],[85,36,85,38],[86,36,86,38],[87,36,87,38],[88,36,88,38],[99,36,99,38],[90,36,90,38],[91,36,91,38],[92,36,92,38],[93,36,93,38],[94,36,94,38],[95,36,95,38],[96,36,96,38],[97,36,97,38],[98,36,98,38],[109,36,109,38],[100,36,100,38],[101,36,101,38],[102,36,102,38],[103,36,103,38],[104,36,104,38],[105,36,105,38],[106,36,106,38],[107,36,107,38],[108,36,108,38],[119,36,119,38],[110,36,110,38],[111,36,111,38],[112,36,112,38],[113,36,113,38],[114,36,114,38],[115,36,115,38],[116,36,116,38],[117,36,117,38],[118,36,118,38],[129,36,129,38],[120,36,120,38],[121,36,121,38],[122,36,122,38],[123,36,123,38],[124,36,124,38],[125,36,125,38],[126,36,126,38],[127,36,127,38],[128,36,128,38],[139,36,139,38],[130,36,130,38],[131,36,131,38],[132,36,132,38],[133,36,133,38],[134,36,134,38],[135,36,135,38],[136,36,136,38],[137,36,137,38],[138,36,138,38],[149,36,149,38],[140,36,140,38],[141,36,141,38],[142,36,142,38],[143,36,143,38],[144,36,144,38],[145,36,145,38],[146,36,146,38],[147,36,147,38],[148,36,148,38],[159,36,159,38],[150,36,150,38],[151,36,151,38],[152,36,152,38],[153,36,153,38],[154,36,154,38],[155,36,155,38],[156,36,156,38],[157,36,157,38],[158,36,158,38]]}
["Fédération Sportive et Gymnique du Travail",null,null,null,null,null,null,null,null,null,null,null,null,null,null,null,null,null,null,null,null,null,null,null,null,null,null,null,null,null,null,"IMPORTANT : Le fichier téléchargé sur le site du comité doit être enregistré sur le disque dur ou sur une clé USB sans changer le nom avant toute saisie ; EXCEL doit être fermé avant toute ouverture du fichier feuille de match"]
["Championnat par équipes",null,null,null,null,null,null,null,null,null,"D",{"$f":"IF(ISBLANK(P4),\" \",P4)","v":1},null,null,null,null,null,null,null,null,null,null,null,null,null,null,null,null,null,null,"Notice :","Sélectionner la division, la phase et la journée à l'aide de la liste déroulante"]
[null,"Date :",{"$f":"IF(ISBLANK(X4),\" \",LOOKUP(X4,Feuil2!D2:D20,Feuil2!E2:E20))","v":"2023-09-28"},null,null,null,null,null,null,"Heure officielle :",{"$f":"IF(ISBLANK(M3),\" \",VLOOKUP(M3,Horaires,2,FALSE))","v":"18H30"},null,13,null,null,null,null,null,null,null,null,null,null,null,null,null,null,null,null,null,null,"Saisir la date dans la cellule C4"]
[null,"Date réelle :",null,null,null,null,null,null,null,"Heure réelle :",{"$f":"IF(ISBLANK(M4),\" \",VLOOKUP(M4,Horaires,2,FALSE))","v":"19H00"},null,19,null,"Division :",1,null,null,"Phase :",1,null,null,"Journée :",1,null,null,null,null,null,null,null,"Sélectionner l'heure officieelle, l'heure réelle et le lieu à l'aide de la liste déroulante (facultatif)"]
[null,"Lieu :",{"$f":"IF(ISBLANK(O5),\" \",VLOOKUP(O5,Lieux,2,FALSE))","v":{"$error":"#N/A"}},null,null,null,null,null,null,null,null,null,null,null,15,null,null,null,null,null,null,null,null,null,null,null,null,{"$f":"HYPERLINK(\"mailto:fdm-tennis-de-table@fsgt75.org\",\"fdm-tennis-de-table@fsgt75.org\")","v":"fdm-tennis-de-table@fsgt75.org"},null,null,null,"Sélectionner les 2 clubs et leurs N° à l'aide de la liste déroulante et cliquer sur le bouton Liste des joueurs"]
[null,null,null,null,null,null,null,null,null,null,null,null,null,null,null,null,null,null,null,null,null,null,null,null,null,null,null,null,null,null,null,"Faire un copier/collage spécial valeurs des N° de licences par joueur depuis la liste affichée ci-dessous"]
[{"$f":"IF(ISBLANK(G7),\" \",VLOOKUP(G7,ordreclubs,2,FALSE))","v":0},null,"Club :",{"$f":"IF(ISBLANK(G7),\" \",VLOOKUP(G7,ordreclubs,2,FALSE))","v":0},null,null,1,null,"N°",1,null,null,null,null,{"$f":"IF(ISBLANK(U7),\" \",VLOOKUP(U7,ordreclubs,2,FALSE))","v":0},null,"Club :",{"$f":"IF(ISBLANK(U7),\" \",VLOOKUP(U7,ordreclubs,2,FALSE))","v":0},null,null,1,null,"N°",1,null,null,null,null,null,null,null,"Ou saisir le 1er N° de licence dans la cellule A9"]
[null,"Licence",null,5,"NOM - Prénom",null,null,null,null,null,null,null,null,"Cla",null,"Licence",null,null,"NOM - Prénom",null,null,null,null,null,null,null,null,"Cla.",null,null,null,"Saisir les autres N° de licence"]
[null,null,null,"A",{"$f":"IF(ISBLANK(A9),\" \",VLOOKUP(A9,BDD,2,FALSE))","v":" "},null,null,null,null,null,null,null,null,{"$f":"IF(ISBLANK(A9),\" \",VLOOKUP(A9,BDD,3,FALSE))","v":" "},null,null,null,"X",{"$f":"IF(ISBLANK(O9),\" \",VLOOKUP(O9,BDD,2,FALSE))","v":" "},null,null,null,null,null,null,null,null,{"$f":"IF(ISBLANK(O9),\" \",VLOOKUP(O9,BDD,3,FALSE))","v":" "},null,null,null,"Pour les WO, saisir 0 en N° de licence"]
[null,null,null,"B",{"$f":"IF(ISBLANK(A10),\" \",VLOOKUP(A10,BDD,2,FALSE))","v":" "},null,null,null,null,null,null,null,null,{"$f":"IF(ISBLANK(A10),\" \",VLOOKUP(A10,BDD,3,FALSE))","v":" "},null,null,null,"Y",{"$f":"IF(ISBLANK(O10),\" \",VLOOKUP(O10,BDD,2,FALSE))","v":" "},null,null,null,null,null,null,null,null,{"$f":"IF(ISBLANK(O10),\" \",VLOOKUP(O10,BDD,3,FALSE))","v":" "},null,null,null,"Saisir les scores sauf pour les W0 (pour les W0, cliquer sur le boutton Scores W0 après avoir saisi les autres scores)"]
[null,null,null,"C",{"$f":"IF(ISBLANK(A11),\" \",VLOOKUP(A11,BDD,2,FALSE))","v":" "},null,null,null,null,null,null,null,null,{"$f":"IF(ISBLANK(A11),\" \",VLOOKUP(A11,BDD,3,FALSE))","v":" "},null,null,null,"Z",{"$f":"IF(ISBLANK(O11),\" \",VLOOKUP(O11,BDD,2,FALSE))","v":" "},null,null,null,null,null,null,null,null,{"$f":"IF(ISBLANK(O11),\" \",VLOOKUP(O11,BDD,3,FALSE))","v":" "},null,null,null,"Si le N° de licence n'est pas reconnu, il faut l'indiquer lors de l'envoi de la feuille de match en précisant nouveau joueur = Nom, Prénom, N° de licence, Club et son classement si celui-ci est connu"]
[]
[null,null,"Scores",null,null,{"$f":"IF(ISBLANK(A7),\" \",A7&\" \"&J7&\" \")","v":"0 1 "},null,null,null,null,null,null,null,null,"ABC",null,null,null,"XYZ",{"$f":"IF(ISBLANK(O7),\" \",O7&\" \"&X7&\" \")","v":"0 1 "},null,null,null,null,null,null,null,null,null,null,null,"Quand la saisie est terminée, cliquer sur le boutton Enregistrer Feuille de Match même icomplète (joueurs manquants) et la feuille de macth s'enregistre dans le même répertoire où se trouve le fichier feuille de match"]
[null,null,null,null,null,{"$f":"E9","v":" "},null,null,null,null,null,null,null,null,"A",{"$f":"IF(A14=\"\",\"\",IF(AND(A14=-0.001,B14=-0.001,C14=-0.001),$C$300,IF(COUNTIF(A14:E14,\">=0\")=$B$304,$A$300,$B$300)))","v":""},null,{"$f":"IF(A14=\"\",\"\",IF(AND(A14=0.001,B14=0.001,C14=0.001),$C$300,IF(COUNTIF(A14:E14,\"<0\")=$B$304,$A$300,$B$300)))","v":""},"X",{"$f":"S9","v":" "}]
[null,null,null,null,null,{"$f":"E10","v":" "},null,null,null,null,null,null,null,null,"B",{"$f":"IF(A15=\"\",\"\",IF(AND(A15=-0.001,B15=-0.001,C15=-0.001),$C$300,IF(COUNTIF(A15:E15,\">=0\")=$B$304,$A$300,$B$300)))","v":""},null,{"$f":"IF(A15=\"\",\"\",IF(AND(A15=0.001,B15=0.001,C15=0.001),$C$300,IF(COUNTIF(A15:E15,\"<0\")=$B$304,$A$300,$B$300)))","v":""},"Y",{"$f":"S10","v":" "},null,null,null,null,null,null,null,null,null,null,null,"Pour saisir une nouvelle feuille de match, fermer Excel puis ouvrez de nouveau la feuille de match"]
[null,null,null,null,null,{"$f":"E11","v":" "},null,null,null,null,null,null,null,null,"C",{"$f":"IF(A16=\"\",\"\",IF(AND(A16=-0.001,B16=-0.001,C16=-0.001),$C$300,IF(COUNTIF(A16:E16,\">=0\")=$B$304,$A$300,$B$300)))","v":""},null,"","Z",{"$f":"S11","v":" "}]
[null,null,null,null,null,{"$f":"E10","v":" "},null,null,null,null,null,null,null,null,"B","",null,"","X",{"$f":"S9","v":" "},null,null,null,null,null,null,null,null,null,null,null,"VISUALISATION DES NUMEROS DE LICENCES"]
[null,null,null,null,null,{"$f":"IF(ISBLANK(N18),\" \",VLOOKUP(N18,Double,2,FALSE))","v":"  -  "},null,null,null,null,null,null,null,1,"ABC","",null,"","XYZ",{"$f":"IF(ISBLANK(AB18),\" \",VLOOKUP(AB18,Double,3,FALSE))","v":"  -  "},null,null,null,null,null,null,null,1,null,null,null,"Club",null,null,null,"Club"]
[null,null,null,null,null,{"$f":"E9","v":" "},null,null,null,null,null,null,null,null,"A","",null,"","Z",{"$f":"S11","v":" "},null,null,null,null,null,null,null,null,null,null,null,{"$f":"IF(ISBLANK(G7),\" \",VLOOKUP(G7,ordreclubs,2,FALSE))","v":0},null,null,null,{"$f":"IF(ISBLANK(U7),\" \",VLOOKUP(U7,ordreclubs,2,FALSE))","v":0}]
[null,null,null,null,null,{"$f":"E11","v":" "},null,null,null,null,null,null,null,null,"C","",null,"","Y",{"$f":"S10","v":" "},null,null,null,null,null,null,null,null,null,null,null,{"$f":"IF(ISBLANK(Feuil5!AF20),\" \",Feuil5!AF20)","v":" "},{"$f":"IF(ISBLANK(Feuil5!AG20),\" \",Feuil5!AG20)","v":" "},null,null,{"$f":"IF(ISBLANK(Feuil5!AJ20),\" \",Feuil5!AJ20)","v":" "},{"$f":"IF(ISBLANK(Feuil5!AK20),\" \",Feuil5!AK20)","v":" "}]
[null,null,null,null,null,{"$f":"E10","v":" "},null,null,null,null,null,null,null,null,"B","",null,"","Z",{"$f":"S11","v":" "},null,null,null,null,null,null,null,null,null,null,null,{"$f":"IF(ISBLANK(Feuil5!AF21),\" \",Feuil5!AF21)","v":" "},{"$f":"IF(ISBLANK(Feuil5!AG21),\" \",Feuil5!AG21)","v":" "},null,null,{"$f":"IF(ISBLANK(Feuil5!AJ21),\" \",Feuil5!AJ21)","v":" "},{"$f":"IF(ISBLANK(Feuil5!AK21),\" \",Feuil5!AK21)","v":" "}]
[null,null,null,null,null,{"$f":"E11","v":" "},null,null,null,null,null,null,null,null,"C","",null,"","X",{"$f":"S9","v":" "},null,null,null,null,null,null,null,null,null,null,null,{"$f":"IF(ISBLANK(Feuil5!AF22),\" \",Feuil5!AF22)","v":" "},{"$f":"IF(ISBLANK(Feuil5!AG22),\" \",Feuil5!AG22)","v":" "},null,null,{"$f":"IF(ISBLANK(Feuil5!AJ22),\" \",Feuil5!AJ22)","v":" "},{"$f":"IF(ISBLANK(Feuil5!AK22),\" \",Feuil5!AK22)","v":" "}]
[null,null,null,null,null,{"$f":"E9","v":" "},null,null,null,null,null,null,null,null,"A","",null,"","Y",{"$f":"S10","v":" "},null,null,null,null,null,null,null,null,null,null,null,{"$f":"IF(ISBLANK(Feuil5!AF23),\" \",Feuil5!AF23)","v":" "},{"$f":"IF(ISBLANK(Feuil5!AG23),\" \",Feuil5!AG23)","v":" "},null,null,{"$f":"IF(ISBLANK(Feuil5!AJ23),\" \",Feuil5!AJ23)","v":" "},{"$f":"IF(ISBLANK(Feuil5!AK23),\" \",Feuil5!AK23)","v":" "}]
[null,null,null,null,null,null,null,null,null,null,null,null,null,null,"Total point-partie :",{"$f":"IF(COUNTIF(Scores,\"<>\")=0,\"\",SUM(P14:P23))","v":""},null,{"$f":"IF(P24=\"\",\"\",SUM(R14:R23))","v":""},null,null,null,null,null,null,null,null,null,null,null,null,null,{"$f":"IF(ISBLANK(Feuil5!AF24),\" \",Feuil5!AF24)","v":" "},{"$f":"IF(ISBLANK(Feuil5!AG24),\" \",Feuil5!AG24)","v":" "},null,null,{"$f":"IF(ISBLANK(Feuil5!AJ24),\" \",Feuil5!AJ24)","v":" "},{"$f":"IF(ISBLANK(Feuil5!AK24),\" \",Feuil5!AK24)","v":" "}]
[null,null,null,null,null,null,null,null,null,null,null,null,null,null,"Total sets :",{"$f":"IF(P24=\"\",\"\",COUNTIF(Scores,\">=0\"))","v":""},null,{"$f":"IF(P24=\"\",\"\",COUNTIF(Scores,\"<0\"))","v":""},null,null,null,null,null,null,null,null,null,null,null,null,null,{"$f":"IF(ISBLANK(Feuil5!AF25),\" \",Feuil5!AF25)","v":" "},{"$f":"IF(ISBLANK(Feuil5!AG25),\" \",Feuil5!AG25)","v":" "},null,null,{"$f":"IF(ISBLANK(Feuil5!AJ25),\" \",Feuil5!AJ25)","v":" "},{"$f":"IF(ISBLANK(Feuil5!AK25),\" \",Feuil5!AK25)","v":" "}]
[null,null,null,null,null,null,null,null,null,null,null,null,null,null,"Total point-jeu :",{"$f":"IF(P24=\"\",\"\",ROUND(-SUMIF(Scores,\"<0\")+SUMPRODUCT((Scores>=0)*(Scores<B297-1)*(Scores<>\"\"))*B297+SUMIF(Scores,\">\"&B297-2)+COUNTIF(Scores,\">\"&B297-2)*2,0))","v":""},null,{"$f":"IF(P24=\"\",\"\",ROUND(SUMIF(Scores,\">=0\")+SUMPRODUCT((Scores<0)*(Scores>-B297+1)*(Scores<>\"\"))*11-SUMIF(Scores,\"<\"&-B297+2)+COUNTIF(Scores,\"<\"&-B297+2)*2,0))","v":""},null,null,null,null,null,null,null,null,null,null,null,null,null,{"$f":"IF(ISBLANK(Feuil5!AF26),\" \",Feuil5!AF26)","v":" "},{"$f":"IF(ISBLANK(Feuil5!AG26),\" \",Feuil5!AG26)","v":" "},null,null,{"$f":"IF(ISBLANK(Feuil5!AJ26),\" \",Feuil5!AJ26)","v":" "},{"$f":"IF(ISBLANK(Feuil5!AK26),\" \",Feuil5!AK26)","v":" "}]
[null,null,null,null,null,null,null,null,null,null,null,null,null,null,null,{"$f":"F13","v":"0 1 "},{"$f":"IF(COUNTIF(Scores,\"<>\")=0,\"\",IF(P26<1,0,IF(P24<R24,1,IF(P24>R24,3,2))))","v":""},null,null,null,null,null,null,null,null,null,null,null,null,null,null,{"$f":"IF(ISBLANK(Feuil5!AF27),\" \",Feuil5!AF27)","v":" "},{"$f":"IF(ISBLANK(Feuil5!AG27),\" \",Feuil5!AG27)","v":" "},null,null,{"$f":"IF(ISBLANK(Feuil5!AJ27),\" \",Feuil5!AJ27)","v":" "},{"$f":"IF(ISBLANK(Feuil5!AK27),\" \",Feuil5!AK27)","v":" "}]
[null,null,null,null,null,null,null,null,null,null,null,null,null,null,null,{"$f":"T13","v":"0 1 "},{"$f":"IF(COUNTIF(Scores,\"<>\")=0,\"\",IF(R26<1,0,IF(P24>R24,1,IF(P24<R24,3,2))))","v":""},null,null,null,null,null,null,null,null,null,null,null,null,null,null,{"$f":"IF(ISBLANK(Feuil5!AF28),\" \",Feuil5!AF28)","v":" "},{"$f":"IF(ISBLANK(Feuil5!AG28),\" \",Feuil5!AG28)","v":" "},null,null,{"$f":"IF(ISBLANK(Feuil5!AJ28),\" \",Feuil5!AJ28)","v":" "},{"$f":"IF(ISBLANK(Feuil5!AK28),\" \",Feuil5!AK28)","v":" "}]
[null,null,null,null,null,null,null,null,null,null,null,null,null,null,null,null,null,null,null,null,null,null,null,null,null,null,null,null,null,null,null,{"$f":"IF(ISBLANK(Feuil5!AF29),\" \",Feuil5!AF29)","v":" "},{"$f":"IF(ISBLANK(Feuil5!AG29),\" \",Feuil5!AG29)","v":" "},null,null,{"$f":"IF(ISBLANK(Feuil5!AJ29),\" \",Feuil5!AJ29)","v":" "},{"$f":"IF(ISBLANK(Feuil5!AK29),\" \",Feuil5!AK29)","v":" "}]
["Particularités pour la saisie",null,null,null,null,null,null,null,null,null,null,null,null,null,null,null,null,null,null,"Numéro de licence de \"WO\" : \"0\"",null,null,null,null,null,null,null,null,null,null,null,{"$f":"IF(ISBLANK(Feuil5!AF30),\" \",Feuil5!AF30)","v":" "},{"$f":"IF(ISBLANK(Feuil5!AG30),\" \",Feuil5!AG30)","v":" "},null,null,{"$f":"IF(ISBLANK(Feuil5!AJ30),\" \",Feuil5!AJ30)","v":" "},{"$f":"IF(ISBLANK(Feuil5!AK30),\" \",Feuil5!AK30)","v":" "}]
["Forfait :",null,null,null,null,null,null,null,null,"Date limite d'envoi :",null,null,null,null,{"$f":"IF(ISBLANK(X4),\" \",LOOKUP(X4,Feuil2!D2:D20,Feuil2!G2:G20))","v":"2023-10-05"},{"$f":"IF(ISBLANK(AG32),\" \",LOOKUP(AG32,Feuil2!Q30:Q47,Feuil2!R30:R47))","v":{"$error":"#N/A"}},{"$f":"IF(ISBLANK(AH32),\" \",LOOKUP(AH32,Feuil2!R30:R47,Feuil2!S30:S47))","v":" "},null,null,null,null,null,null,null,null,null,null,null,null,null,null,{"$f":"IF(ISBLANK(Feuil5!AF31),\" \",Feuil5!AF31)","v":" "},{"$f":"IF(ISBLANK(Feuil5!AG31),\" \",Feuil5!AG31)","v":" "},null,null,{"$f":"IF(ISBLANK(Feuil5!AJ31),\" \",Feuil5!AJ31)","v":" "},{"$f":"IF(ISBLANK(Feuil5!AK31),\" \",Feuil5!AK31)","v":" "}]
[null,"\"0,001\" si forfait côté XYZ",null,null,null,null,null,null,null,"Date limite de jeu :",null,null,null,null,{"$f":"IF(ISBLANK(X4),\" \",LOOKUP(X4,Feuil2!D2:D20,Feuil2!F2:F20))","v":"2023-10-26"},{"$f":"IF(ISBLANK(AG33),\" \",LOOKUP(AG33,Feuil2!Q31:Q48,Feuil2!R31:R48))","v":{"$error":"#N/A"}},{"$f":"IF(ISBLANK(AH33),\" \",LOOKUP(AH33,Feuil2!R31:R48,Feuil2!S31:S48))","v":" "},null,null,"11/0 :",null,null,null,null,null,null,null,null,null,null,null,{"$f":"IF(ISBLANK(Feuil5!AF32),\" \",Feuil5!AF32)","v":" "},{"$f":"IF(ISBLANK(Feuil5!AG32),\" \",Feuil5!AG32)","v":" "},null,null,{"$f":"IF(ISBLANK(Feuil5!AJ32),\" \",Feuil5!AJ32)","v":" "},{"$f":"IF(ISBLANK(Feuil5!AK32),\" \",Feuil5!AK32)","v":" "}]
[null,"\"-0,001\" si forfait côté ABC",null,null,null,null,null,null,null,null,null,null,null,null,null,null,null,null,null,null,"\"0,1\" si vainqueur côté ABC",null,null,null,null,null,null,null,null,null,null,{"$f":"IF(ISBLANK(Feuil5!AF33),\" \",Feuil5!AF33)","v":" "},{"$f":"IF(ISBLANK(Feuil5!AG33),\" \",Feuil5!AG33)","v":" "},null,null,{"$f":"IF(ISBLANK(Feuil5!AJ33),\" \",Feuil5!AJ33)","v":" "},{"$f":"IF(ISBLANK(Feuil5!AK33),\" \",Feuil5!AK33)","v":" "}]
[null,"Pour les trois sets",null,null,null,null,null,null,null,null,null,null,null,null,null,null,null,null,null,null,"\"-0,01\" si vainqueur côté XYZ",null,null,null,null,null,null,null,null,null,null,{"$f":"IF(ISBLANK(Feuil5!AF34),\" \",Feuil5!AF34)","v":" "},{"$f":"IF(ISBLANK(Feuil5!AG34),\" \",Feuil5!AG34)","v":" "},null,null,{"$f":"IF(ISBLANK(Feuil5!AJ34),\" \",Feuil5!AJ34)","v":" "},{"$f":"IF(ISBLANK(Feuil5!AK34),\" \",Feuil5!AK34)","v":" "}]
["C'est important pour le calcul du classement...",null,null,null,null,null,null,null,null,null,null,null,null,null,null,null,null,null,null,null,null,null,null,null,null,null,null,null,null,null,null,{"$f":"IF(ISBLANK(Feuil5!AF35),\" \",Feuil5!AF35)","v":" "},{"$f":"IF(ISBLANK(Feuil5!AG35),\" \",Feuil5!AG35)","v":" "},null,null,{"$f":"IF(ISBLANK(Feuil5!AJ35),\" \",Feuil5!AJ35)","v":" "},{"$f":"IF(ISBLANK(Feuil5!AK35),\" \",Feuil5!AK35)","v":" "}]
[null,null,null,null,null,null,null,null,null,null,null,null,null,null,null,null,null,null,null,null,null,null,null,null,null,null,null,null,null,null,null,{"$f":"IF(ISBLANK(Feuil5!AF36),\" \",Feuil5!AF36)","v":" "},{"$f":"IF(ISBLANK(Feuil5!AG36),\" \",Feuil5!AG36)","v":" "},null,null,{"$f":"IF(ISBLANK(Feuil5!AJ36),\" \",Feuil5!AJ36)","v":" "},{"$f":"IF(ISBLANK(Feuil5!AK36),\" \",Feuil5!AK36)","v":" "}]
[null,null,null,null,null,null,null,null,null,null,null,null,null,null,null,null,null,null,null,null,null,null,null,null,null,null,null,null,null,null,null,{"$f":"IF(ISBLANK(Feuil5!AF37),\" \",Feuil5!AF37)","v":" "},{"$f":"IF(ISBLANK(Feuil5!AG37),\" \",Feuil5!AG37)","v":" "},null,null,{"$f":"IF(ISBLANK(Feuil5!AJ37),\" \",Feuil5!AJ37)","v":" "},{"$f":"IF(ISBLANK(Feuil5!AK37),\" \",Feuil5!AK37)","v":" "}]
[null,null,null,null,null,null,null,null,null,null,null,null,null,null,null,null,null,null,null,null,null,null,null,null,null,null,null,null,null,null,null,{"$f":"IF(ISBLANK(Feuil5!AF38),\" \",Feuil5!AF38)","v":" "},{"$f":"IF(ISBLANK(Feuil5!AG38),\" \",Feuil5!AG38)","v":" "},null,null,{"$f":"IF(ISBLANK(Feuil5!AJ38),\" \",Feuil5!AJ38)","v":" "},{"$f":"IF(ISBLANK(Feuil5!AK38),\" \",Feuil5!AK38)","v":" "}]
[null,null,null,null,null,null,null,null,null,null,null,null,null,null,null,null,null,null,null,null,null,null,null,null,null,null,null,null,null,null,null,{"$f":"IF(ISBLANK(Feuil5!AF39),\" \",Feuil5!AF39)","v":" "},{"$f":"IF(ISBLANK(Feuil5!AG39),\" \",Feuil5!AG39)","v":" "},null,null,{"$f":"IF(ISBLANK(Feuil5!AJ39),\" \",Feuil5!AJ39)","v":" "},{"$f":"IF(ISBLANK(Feuil5!AK39),\" \",Feuil5!AK39)","v":" "}]
[null,null,null,null,null,null,null,null,null,null,null,null,null,null,null,null,null,null,null,null,null,null,null,null,null,null,null,null,null,null,null,{"$f":"IF(ISBLANK(Feuil5!AF40),\" \",Feuil5!AF40)","v":" "},{"$f":"IF(ISBLANK(Feuil5!AG40),\" \",Feuil5!AG40)","v":" "},null,null,{"$f":"IF(ISBLANK(Feuil5!AJ40),\" \",Feuil5!AJ40)","v":" "},{"$f":"IF(ISBLANK(Feuil5!AK40),\" \",Feuil5!AK40)","v":" "}]
[null,null,null,null,null,null,null,null,null,null,null,null,null,null,null,null,null,null,null,null,null,null,null,null,null,null,null,null,null,null,null,{"$f":"IF(ISBLANK(Feuil5!AF41),\" \",Feuil5!AF41)","v":" "},{"$f":"IF(ISBLANK(Feuil5!AG41),\" \",Feuil5!AG41)","v":" "},null,null,{"$f":"IF(ISBLANK(Feuil5!AJ41),\" \",Feuil5!AJ41)","v":" "},{"$f":"IF(ISBLANK(Feuil5!AK41),\" \",Feuil5!AK41)","v":" "}]
[null,null,null,null,null,null,null,null,null,null,null,null,null,null,null,null,null,null,null,null,null,null,null,null,null,null,null,null,null,null,null,{"$f":"IF(ISBLANK(Feuil5!AF42),\" \",Feuil5!AF42)","v":" "},{"$f":"IF(ISBLANK(Feuil5!AG42),\" \",Feuil5!AG42)","v":" "},null,null,{"$f":"IF(ISBLANK(Feuil5!AJ42),\" \",Feuil5!AJ42)","v":" "},{"$f":"IF(ISBLANK(Feuil5!AK42),\" \",Feuil5!AK42)","v":" "}]
[null,null,null,null,null,null,null,null,null,null,null,null,null,null,null,null,null,null,null,null,null,null,null,null,null,null,null,null,null,null,null,{"$f":"IF(ISBLANK(Feuil5!AF43),\" \",Feuil5!AF43)","v":" "},{"$f":"IF(ISBLANK(Feuil5!AG43),\" \",Feuil5!AG43)","v":" "},null,null,{"$f":"IF(ISBLANK(Feuil5!AJ43),\" \",Feuil5!AJ43)","v":" "},{"$f":"IF(ISBLANK(Feuil5!AK43),\" \",Feuil5!AK43)","v":" "}]
[null,null,null,null,null,null,null,null,null,null,null,null,null,null,null,null,null,null,null,null,null,null,null,null,null,null,null,null,null,null,null,{"$f":"IF(ISBLANK(Feuil5!AF44),\" \",Feuil5!AF44)","v":" "},{"$f":"IF(ISBLANK(Feuil5!AG44),\" \",Feuil5!AG44)","v":" "},null,null,{"$f":"IF(ISBLANK(Feuil5!AJ44),\" \",Feuil5!AJ44)","v":" "},{"$f":"IF(ISBLANK(Feuil5!AK44),\" \",Feuil5!AK44)","v":" "}]
[null,null,null,null,null,null,null,null,null,null,null,null,null,null,null,null,null,null,null,null,null,null,null,null,null,null,null,null,null,null,null,{"$f":"IF(ISBLANK(Feuil5!AF45),\" \",Feuil5!AF45)","v":" "},{"$f":"IF(ISBLANK(Feuil5!AG45),\" \",Feuil5!AG45)","v":" "},null,null,{"$f":"IF(ISBLANK(Feuil5!AJ45),\" \",Feuil5!AJ45)","v":" "},{"$f":"IF(ISBLANK(Feuil5!AK45),\" \",Feuil5!AK45)","v":" "}]
[null,null,null,null,null,null,null,null,null,null,null,null,null,null,null,null,null,null,null,null,null,null,null,null,null,null,null,null,null,null,null,{"$f":"IF(ISBLANK(Feuil5!AF46),\" \",Feuil5!AF46)","v":" "},{"$f":"IF(ISBLANK(Feuil5!AG46),\" \",Feuil5!AG46)","v":" "},null,null,{"$f":"IF(ISBLANK(Feuil5!AJ46),\" \",Feuil5!AJ46)","v":" "},{"$f":"IF(ISBLANK(Feuil5!AK46),\" \",Feuil5!AK46)","v":" "}]
[null,null,null,null,null,null,null,null,null,null,null,null,null,null,null,null,null,null,null,null,null,null,null,null,null,null,null,null,null,null,null,{"$f":"IF(ISBLANK(Feuil5!AF47),\" \",Feuil5!AF47)","v":" "},{"$f":"IF(ISBLANK(Feuil5!AG47),\" \",Feuil5!AG47)","v":" "},null,null,{"$f":"IF(ISBLANK(Feuil5!AJ47),\" \",Feuil5!AJ47)","v":" "},{"$f":"IF(ISBLANK(Feuil5!AK47),\" \",Feuil5!AK47)","v":" "}]
[null,null,null,null,null,null,null,null,null,null,null,null,null,null,null,null,null,null,null,null,null,null,null,null,null,null,null,null,null,null,null,{"$f":"IF(ISBLANK(Feuil5!AF48),\" \",Feuil5!AF48)","v":" "},{"$f":"IF(ISBLANK(Feuil5!AG48),\" \",Feuil5!AG48)","v":" "},null,null,{"$f":"IF(ISBLANK(Feuil5!AJ48),\" \",Feuil5!AJ48)","v":" "},{"$f":"IF(ISBLANK(Feuil5!AK48),\" \",Feuil5!AK48)","v":" "}]
[null,null,null,null,null,null,null,null,null,null,null,null,null,null,null,null,null,null,null,null,null,null,null,null,null,null,null,null,null,null,null,{"$f":"IF(ISBLANK(Feuil5!AF49),\" \",Feuil5!AF49)","v":" "},{"$f":"IF(ISBLANK(Feuil5!AG49),\" \",Feuil5!AG49)","v":" "},null,null,{"$f":"IF(ISBLANK(Feuil5!AJ49),\" \",Feuil5!AJ49)","v":" "},{"$f":"IF(ISBLANK(Feuil5!AK49),\" \",Feuil5!AK49)","v":" "}]
[null,null,null,null,null,null,null,null,null,null,null,null,null,null,null,null,null,null,null,null,null,null,null,null,null,null,null,null,null,null,null,{"$f":"IF(ISBLANK(Feuil5!AF50),\" \",Feuil5!AF50)","v":" "},{"$f":"IF(ISBLANK(Feuil5!AG50),\" \",Feuil5!AG50)","v":" "},null,null,{"$f":"IF(ISBLANK(Feuil5!AJ50),\" \",Feuil5!AJ50)","v":" "},{"$f":"IF(ISBLANK(Feuil5!AK50),\" \",Feuil5!AK50)","v":" "}]
[null,null,null,null,null,null,null,null,null,null,null,null,null,null,null,null,null,null,null,null,null,null,null,null,null,null,null,null,null,null,null,{"$f":"IF(ISBLANK(Feuil5!AF51),\" \",Feuil5!AF51)","v":" "},{"$f":"IF(ISBLANK(Feuil5!AG51),\" \",Feuil5!AG51)","v":" "},null,null,{"$f":"IF(ISBLANK(Feuil5!AJ51),\" \",Feuil5!AJ51)","v":" "},{"$f":"IF(ISBLANK(Feuil5!AK51),\" \",Feuil5!AK51)","v":" "}]
[null,null,null,null,null,null,null,null,null,null,null,null,null,null,null,null,null,null,null,null,null,null,null,null,null,null,null,null,null,null,null,{"$f":"IF(ISBLANK(Feuil5!AF52),\" \",Feuil5!AF52)","v":" "},{"$f":"IF(ISBLANK(Feuil5!AG52),\" \",Feuil5!AG52)","v":" "},null,null,{"$f":"IF(ISBLANK(Feuil5!AJ52),\" \",Feuil5!AJ52)","v":" "},{"$f":"IF(ISBLANK(Feuil5!AK52),\" \",Feuil5!AK52)","v":" "}]
[null,null,null,null,null,null,null,null,null,null,null,null,null,null,null,null,null,null,null,null,null,null,null,null,null,null,null,null,null,null,null,{"$f":"IF(ISBLANK(Feuil5!AF53),\" \",Feuil5!AF53)","v":" "},{"$f":"IF(ISBLANK(Feuil5!AG53),\" \",Feuil5!AG53)","v":" "},null,null,{"$f":"IF(ISBLANK(Feuil5!AJ53),\" \",Feuil5!AJ53)","v":" "},{"$f":"IF(ISBLANK(Feuil5!AK53),\" \",Feuil5!AK53)","v":" "}]
[null,null,null,null,null,null,null,null,null,null,null,null,null,null,null,null,null,null,null,null,null,null,null,null,null,null,null,null,null,null,null,{"$f":"IF(ISBLANK(Feuil5!AF54),\" \",Feuil5!AF54)","v":" "},{"$f":"IF(ISBLANK(Feuil5!AG54),\" \",Feuil5!AG54)","v":" "},null,null,{"$f":"IF(ISBLANK(Feuil5!AJ54),\" \",Feuil5!AJ54)","v":" "},{"$f":"IF(ISBLANK(Feuil5!AK54),\" \",Feuil5!AK54)","v":" "}]
[null,null,null,null,null,null,null,null,null,null,null,null,null,null,null,null,null,null,null,null,null,null,null,null,null,null,null,null,null,null,null,{"$f":"IF(ISBLANK(Feuil5!AF55),\" \",Feuil5!AF55)","v":" "},{"$f":"IF(ISBLANK(Feuil5!AG55),\" \",Feuil5!AG55)","v":" "},null,null,{"$f":"IF(ISBLANK(Feuil5!AJ55),\" \",Feuil5!AJ55)","v":" "},{"$f":"IF(ISBLANK(Feuil5!AK55),\" \",Feuil5!AK55)","v":" "}]
[null,null,null,null,null,null,null,null,null,null,null,null,null,null,null,null,null,null,null,null,null,null,null,null,null,null,null,null,null,null,null,{"$f":"IF(ISBLANK(Feuil5!AF56),\" \",Feuil5!AF56)","v":" "},{"$f":"IF(ISBLANK(Feuil5!AG56),\" \",Feuil5!AG56)","v":" "},null,null,{"$f":"IF(ISBLANK(Feuil5!AJ56),\" \",Feuil5!AJ56)","v":" "},{"$f":"IF(ISBLANK(Feuil5!AK56),\" \",Feuil5!AK56)","v":" "}]
[null,null,null,null,null,null,null,null,null,null,null,null,null,null,null,null,null,null,null,null,null,null,null,null,null,null,null,null,null,null,null,{"$f":"IF(ISBLANK(Feuil5!AF57),\" \",Feuil5!AF57)","v":" "},{"$f":"IF(ISBLANK(Feuil5!AG57),\" \",Feuil5!AG57)","v":" "},null,null,{"$f":"IF(ISBLANK(Feuil5!AJ57),\" \",Feuil5!AJ57)","v":" "},{"$f":"IF(ISBLANK(Feuil5!AK57),\" \",Feuil5!AK57)","v":" "}]
[null,null,null,null,null,null,null,null,null,null,null,null,null,null,null,null,null,null,null,null,null,null,null,null,null,null,null,null,null,null,null,{"$f":"IF(ISBLANK(Feuil5!AF58),\" \",Feuil5!AF58)","v":" "},{"$f":"IF(ISBLANK(Feuil5!AG58),\" \",Feuil5!AG58)","v":" "},null,null,{"$f":"IF(ISBLANK(Feuil5!AJ58),\" \",Feuil5!AJ58)","v":" "},{"$f":"IF(ISBLANK(Feuil5!AK58),\" \",Feuil5!AK58)","v":" "}]
[null,null,null,null,null,null,null,null,null,null,null,null,null,null,null,null,null,null,null,null,null,null,null,null,null,null,null,null,null,null,null,{"$f":"IF(ISBLANK(Feuil5!AF59),\" \",Feuil5!AF59)","v":" "},{"$f":"IF(ISBLANK(Feuil5!AG59),\" \",Feuil5!AG59)","v":" "},null,null,{"$f":"IF(ISBLANK(Feuil5!AJ59),\" \",Feuil5!AJ59)","v":" "},{"$f":"IF(ISBLANK(Feuil5!AK59),\" \",Feuil5!AK59)","v":" "}]
[null,null,null,null,null,null,null,null,null,null,null,null,null,null,null,null,null,null,null,null,null,null,null,null,null,null,null,null,null,null,null,{"$f":"IF(ISBLANK(Feuil5!AF60),\" \",Feuil5!AF60)","v":" "},{"$f":"IF(ISBLANK(Feuil5!AG60),\" \",Feuil5!AG60)","v":" "},null,null,{"$f":"IF(ISBLANK(Feuil5!AJ60),\" \",Feuil5!AJ60)","v":" "},{"$f":"IF(ISBLANK(Feuil5!AK60),\" \",Feuil5!AK60)","v":" "}]
[null,null,null,null,null,null,null,null,null,null,null,null,null,null,null,null,null,null,null,null,null,null,null,null,null,null,null,null,null,null,null,{"$f":"IF(ISBLANK(Feuil5!AF61),\" \",Feuil5!AF61)","v":" "},{"$f":"IF(ISBLANK(Feuil5!AG61),\" \",Feuil5!AG61)","v":" "},null,null,{"$f":"IF(ISBLANK(Feuil5!AJ61),\" \",Feuil5!AJ61)","v":" "},{"$f":"IF(ISBLANK(Feuil5!AK61),\" \",Feuil5!AK61)","v":" "}]
[null,null,null,null,null,null,null,null,null,null,null,null,null,null,null,null,null,null,null,null,null,null,null,null,null,null,null,null,null,null,null,{"$f":"IF(ISBLANK(Feuil5!AF62),\" \",Feuil5!AF62)","v":" "},{"$f":"IF(ISBLANK(Feuil5!AG62),\" \",Feuil5!AG62)","v":" "},null,null,{"$f":"IF(ISBLANK(Feuil5!AJ62),\" \",Feuil5!AJ62)","v":" "},{"$f":"IF(ISBLANK(Feuil5!AK62),\" \",Feuil5!AK62)","v":" "}]
[null,null,null,null,null,null,null,null,null,null,null,null,null,null,null,null,null,null,null,null,null,null,null,null,null,null,null,null,null,null,null,{"$f":"IF(ISBLANK(Feuil5!AF63),\" \",Feuil5!AF63)","v":" "},{"$f":"IF(ISBLANK(Feuil5!AG63),\" \",Feuil5!AG63)","v":" "},null,null,{"$f":"IF(ISBLANK(Feuil5!AJ63),\" \",Feuil5!AJ63)","v":" "},{"$f":"IF(ISBLANK(Feuil5!AK63),\" \",Feuil5!AK63)","v":" "}]
[null,null,null,null,null,null,null,null,null,null,null,null,null,null,null,null,null,null,null,null,null,null,null,null,null,null,null,null,null,null,null,{"$f":"IF(ISBLANK(Feuil5!AF64),\" \",Feuil5!AF64)","v":" "},{"$f":"IF(ISBLANK(Feuil5!AG64),\" \",Feuil5!AG64)","v":" "},null,null,{"$f":"IF(ISBLANK(Feuil5!AJ64),\" \",Feuil5!AJ64)","v":" "},{"$f":"IF(ISBLANK(Feuil5!AK64),\" \",Feuil5!AK64)","v":" "}]
[null,null,null,null,null,null,null,null,null,null,null,null,null,null,null,null,null,null,null,null,null,null,null,null,null,null,null,null,null,null,null,{"$f":"IF(ISBLANK(Feuil5!AF65),\" \",Feuil5!AF65)","v":" "},{"$f":"IF(ISBLANK(Feuil5!AG65),\" \",Feuil5!AG65)","v":" "},null,null,{"$f":"IF(ISBLANK(Feuil5!AJ65),\" \",Feuil5!AJ65)","v":" "},{"$f":"IF(ISBLANK(Feuil5!AK65),\" \",Feuil5!AK65)","v":" "}]
[null,null,null,null,null,null,null,null,null,null,null,null,null,null,null,null,null,null,null,null,null,null,null,null,null,null,null,null,null,null,null,{"$f":"IF(ISBLANK(Feuil5!AF66),\" \",Feuil5!AF66)","v":" "},{"$f":"IF(ISBLANK(Feuil5!AG66),\" \",Feuil5!AG66)","v":" "},null,null,{"$f":"IF(ISBLANK(Feuil5!AJ66),\" \",Feuil5!AJ66)","v":" "},{"$f":"IF(ISBLANK(Feuil5!AK66),\" \",Feuil5!AK66)","v":" "}]
[null,null,null,null,null,null,null,null,null,null,null,null,null,null,null,null,null,null,null,null,null,null,null,null,null,null,null,null,null,null,null,{"$f":"IF(ISBLANK(Feuil5!AF67),\" \",Feuil5!AF67)","v":" "},{"$f":"IF(ISBLANK(Feuil5!AG67),\" \",Feuil5!AG67)","v":" "},null,null,{"$f":"IF(ISBLANK(Feuil5!AJ67),\" \",Feuil5!AJ67)","v":" "},{"$f":"IF(ISBLANK(Feuil5!AK67),\" \",Feuil5!AK67)","v":" "}]
[null,null,null,null,null,null,null,null,null,null,null,null,null,null,null,null,null,null,null,null,null,null,null,null,null,null,null,null,null,null,null,{"$f":"IF(ISBLANK(Feuil5!AF68),\" \",Feuil5!AF68)","v":" "},{"$f":"IF(ISBLANK(Feuil5!AG68),\" \",Feuil5!AG68)","v":" "},null,null,{"$f":"IF(ISBLANK(Feuil5!AJ68),\" \",Feuil5!AJ68)","v":" "},{"$f":"IF(ISBLANK(Feuil5!AK68),\" \",Feuil5!AK68)","v":" "}]
[null,null,null,null,null,null,null,null,null,null,null,null,null,null,null,null,null,null,null,null,null,null,null,null,null,null,null,null,null,null,null,{"$f":"IF(ISBLANK(Feuil5!AF69),\" \",Feuil5!AF69)","v":" "},{"$f":"IF(ISBLANK(Feuil5!AG69),\" \",Feuil5!AG69)","v":" "},null,null,{"$f":"IF(ISBLANK(Feuil5!AJ69),\" \",Feuil5!AJ69)","v":" "},{"$f":"IF(ISBLANK(Feuil5!AK69),\" \",Feuil5!AK69)","v":" "}]
[null,null,null,null,null,null,null,null,null,null,null,null,null,null,null,null,null,null,null,null,null,null,null,null,null,null,null,null,null,null,null,{"$f":"IF(ISBLANK(Feuil5!AF70),\" \",Feuil5!AF70)","v":" "},{"$f":"IF(ISBLANK(Feuil5!AG70),\" \",Feuil5!AG70)","v":" "},null,null,{"$f":"IF(ISBLANK(Feuil5!AJ70),\" \",Feuil5!AJ70)","v":" "},{"$f":"IF(ISBLANK(Feuil5!AK70),\" \",Feuil5!AK70)","v":" "}]
[null,null,null,null,null,null,null,null,null,null,null,null,null,null,null,null,null,null,null,null,null,null,null,null,null,null,null,null,null,null,null,{"$f":"IF(ISBLANK(Feuil5!AF71),\" \",Feuil5!AF71)","v":" "},{"$f":"IF(ISBLANK(Feuil5!AG71),\" \",Feuil5!AG71)","v":" "},null,null,{"$f":"IF(ISBLANK(Feuil5!AJ71),\" \",Feuil5!AJ71)","v":" "},{"$f":"IF(ISBLANK(Feuil5!AK71),\" \",Feuil5!AK71)","v":" "}]
[null,null,null,null,null,null,null,null,null,null,null,null,null,null,null,null,null,null,null,null,null,null,null,null,null,null,null,null,null,null,null,{"$f":"IF(ISBLANK(Feuil5!AF72),\" \",Feuil5!AF72)","v":" "},{"$f":"IF(ISBLANK(Feuil5!AG72),\" \",Feuil5!AG72)","v":" "},null,null,{"$f":"IF(ISBLANK(Feuil5!AJ72),\" \",Feuil5!AJ72)","v":" "},{"$f":"IF(ISBLANK(Feuil5!AK72),\" \",Feuil5!AK72)","v":" "}]
[null,null,null,null,null,null,null,null,null,null,null,null,null,null,null,null,null,null,null,null,null,null,null,null,null,null,null,null,null,null,null,{"$f":"IF(ISBLANK(Feuil5!AF73),\" \",Feuil5!AF73)","v":" "},{"$f":"IF(ISBLANK(Feuil5!AG73),\" \",Feuil5!AG73)","v":" "},null,null,{"$f":"IF(ISBLANK(Feuil5!AJ73),\" \",Feuil5!AJ73)","v":" "},{"$f":"IF(ISBLANK(Feuil5!AK73),\" \",Feuil5!AK73)","v":" "}]
[null,null,null,null,null,null,null,null,null,null,null,null,null,null,null,null,null,null,null,null,null,null,null,null,null,null,null,null,null,null,null,{"$f":"IF(ISBLANK(Feuil5!AF74),\" \",Feuil5!AF74)","v":" "},{"$f":"IF(ISBLANK(Feuil5!AG74),\" \",Feuil5!AG74)","v":" "},null,null,{"$f":"IF(ISBLANK(Feuil5!AJ74),\" \",Feuil5!AJ74)","v":" "},{"$f":"IF(ISBLANK(Feuil5!AK74),\" \",Feuil5!AK74)","v":" "}]
[null,null,null,null,null,null,null,null,null,null,null,null,null,null,null,null,null,null,null,null,null,null,null,null,null,null,null,null,null,null,null,{"$f":"IF(ISBLANK(Feuil5!AF75),\" \",Feuil5!AF75)","v":" "},{"$f":"IF(ISBLANK(Feuil5!AG75),\" \",Feuil5!AG75)","v":" "},null,null,{"$f":"IF(ISBLANK(Feuil5!AJ75),\" \",Feuil5!AJ75)","v":" "},{"$f":"IF(ISBLANK(Feuil5!AK75),\" \",Feuil5!AK75)","v":" "}]
[null,null,null,null,null,null,null,null,null,null,null,null,null,null,null,null,null,null,null,null,null,null,null,null,null,null,null,null,null,null,null,{"$f":"IF(ISBLANK(Feuil5!AF76),\" \",Feuil5!AF76)","v":" "},{"$f":"IF(ISBLANK(Feuil5!AG76),\" \",Feuil5!AG76)","v":" "},null,null,{"$f":"IF(ISBLANK(Feuil5!AJ76),\" \",Feuil5!AJ76)","v":" "},{"$f":"IF(ISBLANK(Feuil5!AK76),\" \",Feuil5!AK76)","v":" "}]
[null,null,null,null,null,null,null,null,null,null,null,null,null,null,null,null,null,null,null,null,null,null,null,null,null,null,null,null,null,null,null,{"$f":"IF(ISBLANK(Feuil5!AF77),\" \",Feuil5!AF77)","v":" "},{"$f":"IF(ISBLANK(Feuil5!AG77),\" \",Feuil5!AG77)","v":" "},null,null,{"$f":"IF(ISBLANK(Feuil5!AJ77),\" \",Feuil5!AJ77)","v":" "},{"$f":"IF(ISBLANK(Feuil5!AK77),\" \",Feuil5!AK77)","v":" "}]
[null,null,null,null,null,null,null,null,null,null,null,null,null,null,null,null,null,null,null,null,null,null,null,null,null,null,null,null,null,null,null,{"$f":"IF(ISBLANK(Feuil5!AF78),\" \",Feuil5!AF78)","v":" "},{"$f":"IF(ISBLANK(Feuil5!AG78),\" \",Feuil5!AG78)","v":" "},null,null,{"$f":"IF(ISBLANK(Feuil5!AJ78),\" \",Feuil5!AJ78)","v":" "},{"$f":"IF(ISBLANK(Feuil5!AK78),\" \",Feuil5!AK78)","v":" "}]
[null,null,null,null,null,null,null,null,null,null,null,null,null,null,null,null,null,null,null,null,null,null,null,null,null,null,null,null,null,null,null,{"$f":"IF(ISBLANK(Feuil5!AF79),\" \",Feuil5!AF79)","v":" "},{"$f":"IF(ISBLANK(Feuil5!AG79),\" \",Feuil5!AG79)","v":" "},null,null,{"$f":"IF(ISBLANK(Feuil5!AJ79),\" \",Feuil5!AJ79)","v":" "},{"$f":"IF(ISBLANK(Feuil5!AK79),\" \",Feuil5!AK79)","v":" "}]
[null,null,null,null,null,null,null,null,null,null,null,null,null,null,null,null,null,null,null,null,null,null,null,null,null,null,null,null,null,null,null,{"$f":"IF(ISBLANK(Feuil5!AF80),\" \",Feuil5!AF80)","v":" "},{"$f":"IF(ISBLANK(Feuil5!AG80),\" \",Feuil5!AG80)","v":" "},null,null,{"$f":"IF(ISBLANK(Feuil5!AJ80),\" \",Feuil5!AJ80)","v":" "},{"$f":"IF(ISBLANK(Feuil5!AK80),\" \",Feuil5!AK80)","v":" "}]
[null,null,null,null,null,null,null,null,null,null,null,null,null,null,null,null,null,null,null,null,null,null,null,null,null,null,null,null,null,null,null,{"$f":"IF(ISBLANK(Feuil5!AF81),\" \",Feuil5!AF81)","v":" "},{"$f":"IF(ISBLANK(Feuil5!AG81),\" \",Feuil5!AG81)","v":" "},null,null,{"$f":"IF(ISBLANK(Feuil5!AJ81),\" \",Feuil5!AJ81)","v":" "},{"$f":"IF(ISBLANK(Feuil5!AK81),\" \",Feuil5!AK81)","v":" "}]
[null,null,null,null,null,null,null,null,null,null,null,null,null,null,null,null,null,null,null,null,null,null,null,null,null,null,null,null,null,null,null,{"$f":"IF(ISBLANK(Feuil5!AF82),\" \",Feuil5!AF82)","v":" "},{"$f":"IF(ISBLANK(Feuil5!AG82),\" \",Feuil5!AG82)","v":" "},null,null,{"$f":"IF(ISBLANK(Feuil5!AJ82),\" \",Feuil5!AJ82)","v":" "},{"$f":"IF(ISBLANK(Feuil5!AK82),\" \",Feuil5!AK82)","v":" "}]
[null,null,null,null,null,null,null,null,null,null,null,null,null,null,null,null,null,null,null,null,null,null,null,null,null,null,null,null,null,null,null,{"$f":"IF(ISBLANK(Feuil5!AF83),\" \",Feuil5!AF83)","v":" "},{"$f":"IF(ISBLANK(Feuil5!AG83),\" \",Feuil5!AG83)","v":" "},null,null,{"$f":"IF(ISBLANK(Feuil5!AJ83),\" \",Feuil5!AJ83)","v":" "},{"$f":"IF(ISBLANK(Feuil5!AK83),\" \",Feuil5!AK83)","v":" "}]
[null,null,null,null,null,null,null,null,null,null,null,null,null,null,null,null,null,null,null,null,null,null,null,null,null,null,null,null,null,null,null,{"$f":"IF(ISBLANK(Feuil5!AF84),\" \",Feuil5!AF84)","v":" "},{"$f":"IF(ISBLANK(Feuil5!AG84),\" \",Feuil5!AG84)","v":" "},null,null,{"$f":"IF(ISBLANK(Feuil5!AJ84),\" \",Feuil5!AJ84)","v":" "},{"$f":"IF(ISBLANK(Feuil5!AK84),\" \",Feuil5!AK84)","v":" "}]
[null,null,null,null,null,null,null,null,null,null,null,null,null,null,null,null,null,null,null,null,null,null,null,null,null,null,null,null,null,null,null,{"$f":"IF(ISBLANK(Feuil5!AF85),\" \",Feuil5!AF85)","v":" "},{"$f":"IF(ISBLANK(Feuil5!AG85),\" \",Feuil5!AG85)","v":" "},null,null,{"$f":"IF(ISBLANK(Feuil5!AJ85),\" \",Feuil5!AJ85)","v":" "},{"$f":"IF(ISBLANK(Feuil5!AK85),\" \",Feuil5!AK85)","v":" "}]
[null,null,null,null,null,null,null,null,null,null,null,null,null,null,null,null,null,null,null,null,null,null,null,null,null,null,null,null,null,null,null,{"$f":"IF(ISBLANK(Feuil5!AF86),\" \",Feuil5!AF86)","v":" "},{"$f":"IF(ISBLANK(Feuil5!AG86),\" \",Feuil5!AG86)","v":" "},null,null,{"$f":"IF(ISBLANK(Feuil5!AJ86),\" \",Feuil5!AJ86)","v":" "},{"$f":"IF(ISBLANK(Feuil5!AK86),\" \",Feuil5!AK86)","v":" "}]
[null,null,null,null,null,null,null,null,null,null,null,null,null,null,null,null,null,null,null,null,null,null,null,null,null,null,null,null,null,null,null,{"$f":"IF(ISBLANK(Feuil5!AF87),\" \",Feuil5!AF87)","v":" "},{"$f":"IF(ISBLANK(Feuil5!AG87),\" \",Feuil5!AG87)","v":" "},null,null,{"$f":"IF(ISBLANK(Feuil5!AJ87),\" \",Feuil5!AJ87)","v":" "},{"$f":"IF(ISBLANK(Feuil5!AK87),\" \",Feuil5!AK87)","v":" "}]
[null,null,null,null,null,null,null,null,null,null,null,null,null,null,null,null,null,null,null,null,null,null,null,null,null,null,null,null,null,null,null,{"$f":"IF(ISBLANK(Feuil5!AF88),\" \",Feuil5!AF88)","v":" "},{"$f":"IF(ISBLANK(Feuil5!AG88),\" \",Feuil5!AG88)","v":" "},null,null,{"$f":"IF(ISBLANK(Feuil5!AJ88),\" \",Feuil5!AJ88)","v":" "},{"$f":"IF(ISBLANK(Feuil5!AK88),\" \",Feuil5!AK88)","v":" "}]
[null,null,null,null,null,null,null,null,null,null,null,null,null,null,null,null,null,null,null,null,null,null,null,null,null,null,null,null,null,null,null,{"$f":"IF(ISBLANK(Feuil5!AF89),\" \",Feuil5!AF89)","v":" "},{"$f":"IF(ISBLANK(Feuil5!AG89),\" \",Feuil5!AG89)","v":" "},null,null,{"$f":"IF(ISBLANK(Feuil5!AJ89),\" \",Feuil5!AJ89)","v":" "},{"$f":"IF(ISBLANK(Feuil5!AK89),\" \",Feuil5!AK89)","v":" "}]
[null,null,null,null,null,null,null,null,null,null,null,null,null,null,null,null,null,null,null,null,null,null,null,null,null,null,null,null,null,null,null,{"$f":"IF(ISBLANK(Feuil5!AF90),\" \",Feuil5!AF90)","v":" "},{"$f":"IF(ISBLANK(Feuil5!AG90),\" \",Feuil5!AG90)","v":" "},null,null,{"$f":"IF(ISBLANK(Feuil5!AJ90),\" \",Feuil5!AJ90)","v":" "},{"$f":"IF(ISBLANK(Feuil5!AK90),\" \",Feuil5!AK90)","v":" "}]
[null,null,null,null,null,null,null,null,null,null,null,null,null,null,null,null,null,null,null,null,null,null,null,null,null,null,null,null,null,null,null,{"$f":"IF(ISBLANK(Feuil5!AF91),\" \",Feuil5!AF91)","v":" "},{"$f":"IF(ISBLANK(Feuil5!AG91),\" \",Feuil5!AG91)","v":" "},null,null,{"$f":"IF(ISBLANK(Feuil5!AJ91),\" \",Feuil5!AJ91)","v":" "},{"$f":"IF(ISBLANK(Feuil5!AK91),\" \",Feuil5!AK91)","v":" "}]
[null,null,null,null,null,null,null,null,null,null,null,null,null,null,null,null,null,null,null,null,null,null,null,null,null,null,null,null,null,null,null,{"$f":"IF(ISBLANK(Feuil5!AF92),\" \",Feuil5!AF92)","v":" "},{"$f":"IF(ISBLANK(Feuil5!AG92),\" \",Feuil5!AG92)","v":" "},null,null,{"$f":"IF(ISBLANK(Feuil5!AJ92),\" \",Feuil5!AJ92)","v":" "},{"$f":"IF(ISBLANK(Feuil5!AK92),\" \",Feuil5!AK92)","v":" "}]
[null,null,null,null,null,null,null,null,null,null,null,null,null,null,null,null,null,null,null,null,null,null,null,null,null,null,null,null,null,null,null,{"$f":"IF(ISBLANK(Feuil5!AF93),\" \",Feuil5!AF93)","v":" "},{"$f":"IF(ISBLANK(Feuil5!AG93),\" \",Feuil5!AG93)","v":" "},null,null,{"$f":"IF(ISBLANK(Feuil5!AJ93),\" \",Feuil5!AJ93)","v":" "},{"$f":"IF(ISBLANK(Feuil5!AK93),\" \",Feuil5!AK93)","v":" "}]
[null,null,null,null,null,null,null,null,null,null,null,null,null,null,null,null,null,null,null,null,null,null,null,null,null,null,null,null,null,null,null,{"$f":"IF(ISBLANK(Feuil5!AF94),\" \",Feuil5!AF94)","v":" "},{"$f":"IF(ISBLANK(Feuil5!AG94),\" \",Feuil5!AG94)","v":" "},null,null,{"$f":"IF(ISBLANK(Feuil5!AJ94),\" \",Feuil5!AJ94)","v":" "},{"$f":"IF(ISBLANK(Feuil5!AK94),\" \",Feuil5!AK94)","v":" "}]
[null,null,null,null,null,null,null,null,null,null,null,null,null,null,null,null,null,null,null,null,null,null,null,null,null,null,null,null,null,null,null,{"$f":"IF(ISBLANK(Feuil5!AF95),\" \",Feuil5!AF95)","v":" "},{"$f":"IF(ISBLANK(Feuil5!AG95),\" \",Feuil5!AG95)","v":" "},null,null,{"$f":"IF(ISBLANK(Feuil5!AJ95),\" \",Feuil5!AJ95)","v":" "},{"$f":"IF(ISBLANK(Feuil5!AK95),\" \",Feuil5!AK95)","v":" "}]
[null,null,null,null,null,null,null,null,null,null,null,null,null,null,null,null,null,null,null,null,null,null,null,null,null,null,null,null,null,null,null,{"$f":"IF(ISBLANK(Feuil5!AF96),\" \",Feuil5!AF96)","v":" "},{"$f":"IF(ISBLANK(Feuil5!AG96),\" \",Feuil5!AG96)","v":" "},null,null,{"$f":"IF(ISBLANK(Feuil5!AJ96),\" \",Feuil5!AJ96)","v":" "},{"$f":"IF(ISBLANK(Feuil5!AK96),\" \",Feuil5!AK96)","v":" "}]
[null,null,null,null,null,null,null,null,null,null,null,null,null,null,null,null,null,null,null,null,null,null,null,null,null,null,null,null,null,null,null,{"$f":"IF(ISBLANK(Feuil5!AF97),\" \",Feuil5!AF97)","v":" "},{"$f":"IF(ISBLANK(Feuil5!AG97),\" \",Feuil5!AG97)","v":" "},null,null,{"$f":"IF(ISBLANK(Feuil5!AJ97),\" \",Feuil5!AJ97)","v":" "},{"$f":"IF(ISBLANK(Feuil5!AK97),\" \",Feuil5!AK97)","v":" "}]
[null,null,null,null,null,null,null,null,null,null,null,null,null,null,null,null,null,null,null,null,null,null,null,null,null,null,null,null,null,null,null,{"$f":"IF(ISBLANK(Feuil5!AF98),\" \",Feuil5!AF98)","v":" "},{"$f":"IF(ISBLANK(Feuil5!AG98),\" \",Feuil5!AG98)","v":" "},null,null,{"$f":"IF(ISBLANK(Feuil5!AJ98),\" \",Feuil5!AJ98)","v":" "},{"$f":"IF(ISBLANK(Feuil5!AK98),\" \",Feuil5!AK98)","v":" "}]
[null,null,null,null,null,null,null,null,null,null,null,null,null,null,null,null,null,null,null,null,null,null,null,null,null,null,null,null,null,null,null,{"$f":"IF(ISBLANK(Feuil5!AF99),\" \",Feuil5!AF99)","v":" "},{"$f":"IF(ISBLANK(Feuil5!AG99),\" \",Feuil5!AG99)","v":" "},null,null,{"$f":"IF(ISBLANK(Feuil5!AJ99),\" \",Feuil5!AJ99)","v":" "},{"$f":"IF(ISBLANK(Feuil5!AK99),\" \",Feuil5!AK99)","v":" "}]
[null,null,null,null,null,null,null,null,null,null,null,null,null,null,null,null,null,null,null,null,null,null,null,null,null,null,null,null,null,null,null,{"$f":"IF(ISBLANK(Feuil5!AF100),\" \",Feuil5!AF100)","v":" "},{"$f":"IF(ISBLANK(Feuil5!AG100),\" \",Feuil5!AG100)","v":" "},null,null,{"$f":"IF(ISBLANK(Feuil5!AJ100),\" \",Feuil5!AJ100)","v":" "},{"$f":"IF(ISBLANK(Feuil5!AK100),\" \",Feuil5!AK100)","v":" "}]
[null,null,null,null,null,null,null,null,null,null,null,null,null,null,null,null,null,null,null,null,null,null,null,null,null,null,null,null,null,null,null,{"$f":"IF(ISBLANK(Feuil5!AF101),\" \",Feuil5!AF101)","v":" "},{"$f":"IF(ISBLANK(Feuil5!AG101),\" \",Feuil5!AG101)","v":" "},null,null,{"$f":"IF(ISBLANK(Feuil5!AJ101),\" \",Feuil5!AJ101)","v":" "},{"$f":"IF(ISBLANK(Feuil5!AK101),\" \",Feuil5!AK101)","v":" "}]
[null,null,null,null,null,null,null,null,null,null,null,null,null,null,null,null,null,null,null,null,null,null,null,null,null,null,null,null,null,null,null,{"$f":"IF(ISBLANK(Feuil5!AF102),\" \",Feuil5!AF102)","v":" "},{"$f":"IF(ISBLANK(Feuil5!AG102),\" \",Feuil5!AG102)","v":" "},null,null,{"$f":"IF(ISBLANK(Feuil5!AJ102),\" \",Feuil5!AJ102)","v":" "},{"$f":"IF(ISBLANK(Feuil5!AK102),\" \",Feuil5!AK102)","v":" "}]
[null,null,null,null,null,null,null,null,null,null,null,null,null,null,null,null,null,null,null,null,null,null,null,null,null,null,null,null,null,null,null,{"$f":"IF(ISBLANK(Feuil5!AF103),\" \",Feuil5!AF103)","v":" "},{"$f":"IF(ISBLANK(Feuil5!AG103),\" \",Feuil5!AG103)","v":" "},null,null,{"$f":"IF(ISBLANK(Feuil5!AJ103),\" \",Feuil5!AJ103)","v":" "},{"$f":"IF(ISBLANK(Feuil5!AK103),\" \",Feuil5!AK103)","v":" "}]
[null,null,null,null,null,null,null,null,null,null,null,null,null,null,null,null,null,null,null,null,null,null,null,null,null,null,null,null,null,null,null,{"$f":"IF(ISBLANK(Feuil5!AF104),\" \",Feuil5!AF104)","v":" "},{"$f":"IF(ISBLANK(Feuil5!AG104),\" \",Feuil5!AG104)","v":" "},null,null,{"$f":"IF(ISBLANK(Feuil5!AJ104),\" \",Feuil5!AJ104)","v":" "},{"$f":"IF(ISBLANK(Feuil5!AK104),\" \",Feuil5!AK104)","v":" "}]
[null,null,null,null,null,null,null,null,null,null,null,null,null,null,null,null,null,null,null,null,null,null,null,null,null,null,null,null,null,null,null,{"$f":"IF(ISBLANK(Feuil5!AF105),\" \",Feuil5!AF105)","v":" "},{"$f":"IF(ISBLANK(Feuil5!AG105),\" \",Feuil5!AG105)","v":" "},null,null,{"$f":"IF(ISBLANK(Feuil5!AJ105),\" \",Feuil5!AJ105)","v":" "},{"$f":"IF(ISBLANK(Feuil5!AK105),\" \",Feuil5!AK105)","v":" "}]
[null,null,null,null,null,null,null,null,null,null,null,null,null,null,null,null,null,null,null,null,null,null,null,null,null,null,null,null,null,null,null,{"$f":"IF(ISBLANK(Feuil5!AF106),\" \",Feuil5!AF106)","v":" "},{"$f":"IF(ISBLANK(Feuil5!AG106),\" \",Feuil5!AG106)","v":" "},null,null,{"$f":"IF(ISBLANK(Feuil5!AJ106),\" \",Feuil5!AJ106)","v":" "},{"$f":"IF(ISBLANK(Feuil5!AK106),\" \",Feuil5!AK106)","v":" "}]
[null,null,null,null,null,null,null,null,null,null,null,null,null,null,null,null,null,null,null,null,null,null,null,null,null,null,null,null,null,null,null,{"$f":"IF(ISBLANK(Feuil5!AF107),\" \",Feuil5!AF107)","v":" "},{"$f":"IF(ISBLANK(Feuil5!AG107),\" \",Feuil5!AG107)","v":" "},null,null,{"$f":"IF(ISBLANK(Feuil5!AJ107),\" \",Feuil5!AJ107)","v":" "},{"$f":"IF(ISBLANK(Feuil5!AK107),\" \",Feuil5!AK107)","v":" "}]
[null,null,null,null,null,null,null,null,null,null,null,null,null,null,null,null,null,null,null,null,null,null,null,null,null,null,null,null,null,null,null,{"$f":"IF(ISBLANK(Feuil5!AF108),\" \",Feuil5!AF108)","v":" "},{"$f":"IF(ISBLANK(Feuil5!AG108),\" \",Feuil5!AG108)","v":" "},null,null,{"$f":"IF(ISBLANK(Feuil5!AJ108),\" \",Feuil5!AJ108)","v":" "},{"$f":"IF(ISBLANK(Feuil5!AK108),\" \",Feuil5!AK108)","v":" "}]
[null,null,null,null,null,null,null,null,null,null,null,null,null,null,null,null,null,null,null,null,null,null,null,null,null,null,null,null,null,null,null,{"$f":"IF(ISBLANK(Feuil5!AF109),\" \",Feuil5!AF109)","v":" "},{"$f":"IF(ISBLANK(Feuil5!AG109),\" \",Feuil5!AG109)","v":" "},null,null,{"$f":"IF(ISBLANK(Feuil5!AJ109),\" \",Feuil5!AJ109)","v":" "},{"$f":"IF(ISBLANK(Feuil5!AK109),\" \",Feuil5!AK109)","v":" "}]
[null,null,null,null,null,null,null,null,null,null,null,null,null,null,null,null,null,null,null,null,null,null,null,null,null,null,null,null,null,null,null,{"$f":"IF(ISBLANK(Feuil5!AF110),\" \",Feuil5!AF110)","v":" "},{"$f":"IF(ISBLANK(Feuil5!AG110),\" \",Feuil5!AG110)","v":" "},null,null,{"$f":"IF(ISBLANK(Feuil5!AJ110),\" \",Feuil5!AJ110)","v":" "},{"$f":"IF(ISBLANK(Feuil5!AK110),\" \",Feuil5!AK110)","v":" "}]
[null,null,null,null,null,null,null,null,null,null,null,null,null,null,null,null,null,null,null,null,null,null,null,null,null,null,null,null,null,null,null,{"$f":"IF(ISBLANK(Feuil5!AF111),\" \",Feuil5!AF111)","v":" "},{"$f":"IF(ISBLANK(Feuil5!AG111),\" \",Feuil5!AG111)","v":" "},null,null,{"$f":"IF(ISBLANK(Feuil5!AJ111),\" \",Feuil5!AJ111)","v":" "},{"$f":"IF(ISBLANK(Feuil5!AK111),\" \",Feuil5!AK111)","v":" "}]
[null,null,null,null,null,null,null,null,null,null,null,null,null,null,null,null,null,null,null,null,null,null,null,null,null,null,null,null,null,null,null,{"$f":"IF(ISBLANK(Feuil5!AF112),\" \",Feuil5!AF112)","v":" "},{"$f":"IF(ISBLANK(Feuil5!AG112),\" \",Feuil5!AG112)","v":" "},null,null,{"$f":"IF(ISBLANK(Feuil5!AJ112),\" \",Feuil5!AJ112)","v":" "},{"$f":"IF(ISBLANK(Feuil5!AK112),\" \",Feuil5!AK112)","v":" "}]
[null,null,null,null,null,null,null,null,null,null,null,null,null,null,null,null,null,null,null,null,null,null,null,null,null,null,null,null,null,null,null,{"$f":"IF(ISBLANK(Feuil5!AF113),\" \",Feuil5!AF113)","v":" "},{"$f":"IF(ISBLANK(Feuil5!AG113),\" \",Feuil5!AG113)","v":" "},null,null,{"$f":"IF(ISBLANK(Feuil5!AJ113),\" \",Feuil5!AJ113)","v":" "},{"$f":"IF(ISBLANK(Feuil5!AK113),\" \",Feuil5!AK113)","v":" "}]
[null,null,null,null,null,null,null,null,null,null,null,null,null,null,null,null,null,null,null,null,null,null,null,null,null,null,null,null,null,null,null,{"$f":"IF(ISBLANK(Feuil5!AF114),\" \",Feuil5!AF114)","v":" "},{"$f":"IF(ISBLANK(Feuil5!AG114),\" \",Feuil5!AG114)","v":" "},null,null,{"$f":"IF(ISBLANK(Feuil5!AJ114),\" \",Feuil5!AJ114)","v":" "},{"$f":"IF(ISBLANK(Feuil5!AK114),\" \",Feuil5!AK114)","v":" "}]
[null,null,null,null,null,null,null,null,null,null,null,null,null,null,null,null,null,null,null,null,null,null,null,null,null,null,null,null,null,null,null,{"$f":"IF(ISBLANK(Feuil5!AF115),\" \",Feuil5!AF115)","v":" "},{"$f":"IF(ISBLANK(Feuil5!AG115),\" \",Feuil5!AG115)","v":" "},null,null,{"$f":"IF(ISBLANK(Feuil5!AJ115),\" \",Feuil5!AJ115)","v":" "},{"$f":"IF(ISBLANK(Feuil5!AK115),\" \",Feuil5!AK115)","v":" "}]
[null,null,null,null,null,null,null,null,null,null,null,null,null,null,null,null,null,null,null,null,null,null,null,null,null,null,null,null,null,null,null,{"$f":"IF(ISBLANK(Feuil5!AF116),\" \",Feuil5!AF116)","v":" "},{"$f":"IF(ISBLANK(Feuil5!AG116),\" \",Feuil5!AG116)","v":" "},null,null,{"$f":"IF(ISBLANK(Feuil5!AJ116),\" \",Feuil5!AJ116)","v":" "},{"$f":"IF(ISBLANK(Feuil5!AK116),\" \",Feuil5!AK116)","v":" "}]
[null,null,null,null,null,null,null,null,null,null,null,null,null,null,null,null,null,null,null,null,null,null,null,null,null,null,null,null,null,null,null,{"$f":"IF(ISBLANK(Feuil5!AF117),\" \",Feuil5!AF117)","v":" "},{"$f":"IF(ISBLANK(Feuil5!AG117),\" \",Feuil5!AG117)","v":" "},null,null,{"$f":"IF(ISBLANK(Feuil5!AJ117),\" \",Feuil5!AJ117)","v":" "},{"$f":"IF(ISBLANK(Feuil5!AK117),\" \",Feuil5!AK117)","v":" "}]
[null,null,null,null,null,null,null,null,null,null,null,null,null,null,null,null,null,null,null,null,null,null,null,null,null,null,null,null,null,null,null,{"$f":"IF(ISBLANK(Feuil5!AF118),\" \",Feuil5!AF118)","v":" "},{"$f":"IF(ISBLANK(Feuil5!AG118),\" \",Feuil5!AG118)","v":" "},null,null,{"$f":"IF(ISBLANK(Feuil5!AJ118),\" \",Feuil5!AJ118)","v":" "},{"$f":"IF(ISBLANK(Feuil5!AK118),\" \",Feuil5!AK118)","v":" "}]
[null,null,null,null,null,null,null,null,null,null,null,null,null,null,null,null,null,null,null,null,null,null,null,null,null,null,null,null,null,null,null,{"$f":"IF(ISBLANK(Feuil5!AF119),\" \",Feuil5!AF119)","v":" "},{"$f":"IF(ISBLANK(Feuil5!AG119),\" \",Feuil5!AG119)","v":" "},null,null,{"$f":"IF(ISBLANK(Feuil5!AJ119),\" \",Feuil5!AJ119)","v":" "},{"$f":"IF(ISBLANK(Feuil5!AK119),\" \",Feuil5!AK119)","v":" "}]
[null,null,null,null,null,null,null,null,null,null,null,null,null,null,null,null,null,null,null,null,null,null,null,null,null,null,null,null,null,null,null,{"$f":"IF(ISBLANK(Feuil5!AF120),\" \",Feuil5!AF120)","v":" "},{"$f":"IF(ISBLANK(Feuil5!AG120),\" \",Feuil5!AG120)","v":" "},null,null,{"$f":"IF(ISBLANK(Feuil5!AJ120),\" \",Feuil5!AJ120)","v":" "},{"$f":"IF(ISBLANK(Feuil5!AK120),\" \",Feuil5!AK120)","v":" "}]
[null,null,null,null,null,null,null,null,null,null,null,null,null,null,null,null,null,null,null,null,null,null,null,null,null,null,null,null,null,null,null,{"$f":"IF(ISBLANK(Feuil5!AF121),\" \",Feuil5!AF121)","v":" "},{"$f":"IF(ISBLANK(Feuil5!AG121),\" \",Feuil5!AG121)","v":" "},null,null,{"$f":"IF(ISBLANK(Feuil5!AJ121),\" \",Feuil5!AJ121)","v":" "},{"$f":"IF(ISBLANK(Feuil5!AK121),\" \",Feuil5!AK121)","v":" "}]
[null,null,null,null,null,null,null,null,null,null,null,null,null,null,null,null,null,null,null,null,null,null,null,null,null,null,null,null,null,null,null,{"$f":"IF(ISBLANK(Feuil5!AF122),\" \",Feuil5!AF122)","v":" "},{"$f":"IF(ISBLANK(Feuil5!AG122),\" \",Feuil5!AG122)","v":" "},null,null,{"$f":"IF(ISBLANK(Feuil5!AJ122),\" \",Feuil5!AJ122)","v":" "},{"$f":"IF(ISBLANK(Feuil5!AK122),\" \",Feuil5!AK122)","v":" "}]
[null,null,null,null,null,null,null,null,null,null,null,null,null,null,null,null,null,null,null,null,null,null,null,null,null,null,null,null,null,null,null,{"$f":"IF(ISBLANK(Feuil5!AF123),\" \",Feuil5!AF123)","v":" "},{"$f":"IF(ISBLANK(Feuil5!AG123),\" \",Feuil5!AG123)","v":" "},null,null,{"$f":"IF(ISBLANK(Feuil5!AJ123),\" \",Feuil5!AJ123)","v":" "},{"$f":"IF(ISBLANK(Feuil5!AK123),\" \",Feuil5!AK123)","v":" "}]
[null,null,null,null,null,null,null,null,null,null,null,null,null,null,null,null,null,null,null,null,null,null,null,null,null,null,null,null,null,null,null,{"$f":"IF(ISBLANK(Feuil5!AF124),\" \",Feuil5!AF124)","v":" "},{"$f":"IF(ISBLANK(Feuil5!AG124),\" \",Feuil5!AG124)","v":" "},null,null,{"$f":"IF(ISBLANK(Feuil5!AJ124),\" \",Feuil5!AJ124)","v":" "},{"$f":"IF(ISBLANK(Feuil5!AK124),\" \",Feuil5!AK124)","v":" "}]
[null,null,null,null,null,null,null,null,null,null,null,null,null,null,null,null,null,null,null,null,null,null,null,null,null,null,null,null,null,null,null,{"$f":"IF(ISBLANK(Feuil5!AF125),\" \",Feuil5!AF125)","v":" "},{"$f":"IF(ISBLANK(Feuil5!AG125),\" \",Feuil5!AG125)","v":" "},null,null,{"$f":"IF(ISBLANK(Feuil5!AJ125),\" \",Feuil5!AJ125)","v":" "},{"$f":"IF(ISBLANK(Feuil5!AK125),\" \",Feuil5!AK125)","v":" "}]
[null,null,null,null,null,null,null,null,null,null,null,null,null,null,null,null,null,null,null,null,null,null,null,null,null,null,null,null,null,null,null,{"$f":"IF(ISBLANK(Feuil5!AF126),\" \",Feuil5!AF126)","v":" "},{"$f":"IF(ISBLANK(Feuil5!AG126),\" \",Feuil5!AG126)","v":" "},null,null,{"$f":"IF(ISBLANK(Feuil5!AJ126),\" \",Feuil5!AJ126)","v":" "},{"$f":"IF(ISBLANK(Feuil5!AK126),\" \",Feuil5!AK126)","v":" "}]
[null,null,null,null,null,null,null,null,null,null,null,null,null,null,null,null,null,null,null,null,null,null,null,null,null,null,null,null,null,null,null,{"$f":"IF(ISBLANK(Feuil5!AF127),\" \",Feuil5!AF127)","v":" "},{"$f":"IF(ISBLANK(Feuil5!AG127),\" \",Feuil5!AG127)","v":" "},null,null,{"$f":"IF(ISBLANK(Feuil5!AJ127),\" \",Feuil5!AJ127)","v":" "},{"$f":"IF(ISBLANK(Feuil5!AK127),\" \",Feuil5!AK127)","v":" "}]
[null,null,null,null,null,null,null,null,null,null,null,null,null,null,null,null,null,null,null,null,null,null,null,null,null,null,null,null,null,null,null,{"$f":"IF(ISBLANK(Feuil5!AF128),\" \",Feuil5!AF128)","v":" "},{"$f":"IF(ISBLANK(Feuil5!AG128),\" \",Feuil5!AG128)","v":" "},null,null,{"$f":"IF(ISBLANK(Feuil5!AJ128),\" \",Feuil5!AJ128)","v":" "},{"$f":"IF(ISBLANK(Feuil5!AK128),\" \",Feuil5!AK128)","v":" "}]
[null,null,null,null,null,null,null,null,null,null,null,null,null,null,null,null,null,null,null,null,null,null,null,null,null,null,null,null,null,null,null,{"$f":"IF(ISBLANK(Feuil5!AF129),\" \",Feuil5!AF129)","v":" "},{"$f":"IF(ISBLANK(Feuil5!AG129),\" \",Feuil5!AG129)","v":" "},null,null,{"$f":"IF(ISBLANK(Feuil5!AJ129),\" \",Feuil5!AJ129)","v":" "},{"$f":"IF(ISBLANK(Feuil5!AK129),\" \",Feuil5!AK129)","v":" "}]
[null,null,null,null,null,null,null,null,null,null,null,null,null,null,null,null,null,null,null,null,null,null,null,null,null,null,null,null,null,null,null,{"$f":"IF(ISBLANK(Feuil5!AF130),\" \",Feuil5!AF130)","v":" "},{"$f":"IF(ISBLANK(Feuil5!AG130),\" \",Feuil5!AG130)","v":" "},null,null,{"$f":"IF(ISBLANK(Feuil5!AJ130),\" \",Feuil5!AJ130)","v":" "},{"$f":"IF(ISBLANK(Feuil5!AK130),\" \",Feuil5!AK130)","v":" "}]
[null,null,null,null,null,null,null,null,null,null,null,null,null,null,null,null,null,null,null,null,null,null,null,null,null,null,null,null,null,null,null,{"$f":"IF(ISBLANK(Feuil5!AF131),\" \",Feuil5!AF131)","v":" "},{"$f":"IF(ISBLANK(Feuil5!AG131),\" \",Feuil5!AG131)","v":" "},null,null,{"$f":"IF(ISBLANK(Feuil5!AJ131),\" \",Feuil5!AJ131)","v":" "},{"$f":"IF(ISBLANK(Feuil5!AK131),\" \",Feuil5!AK131)","v":" "}]
[null,null,null,null,null,null,null,null,null,null,null,null,null,null,null,null,null,null,null,null,null,null,null,null,null,null,null,null,null,null,null,{"$f":"IF(ISBLANK(Feuil5!AF132),\" \",Feuil5!AF132)","v":" "},{"$f":"IF(ISBLANK(Feuil5!AG132),\" \",Feuil5!AG132)","v":" "},null,null,{"$f":"IF(ISBLANK(Feuil5!AJ132),\" \",Feuil5!AJ132)","v":" "},{"$f":"IF(ISBLANK(Feuil5!AK132),\" \",Feuil5!AK132)","v":" "}]
[null,null,null,null,null,null,null,null,null,null,null,null,null,null,null,null,null,null,null,null,null,null,null,null,null,null,null,null,null,null,null,{"$f":"IF(ISBLANK(Feuil5!AF133),\" \",Feuil5!AF133)","v":" "},{"$f":"IF(ISBLANK(Feuil5!AG133),\" \",Feuil5!AG133)","v":" "},null,null,{"$f":"IF(ISBLANK(Feuil5!AJ133),\" \",Feuil5!AJ133)","v":" "},{"$f":"IF(ISBLANK(Feuil5!AK133),\" \",Feuil5!AK133)","v":" "}]
[null,null,null,null,null,null,null,null,null,null,null,null,null,null,null,null,null,null,null,null,null,null,null,null,null,null,null,null,null,null,null,{"$f":"IF(ISBLANK(Feuil5!AF134),\" \",Feuil5!AF134)","v":" "},{"$f":"IF(ISBLANK(Feuil5!AG134),\" \",Feuil5!AG134)","v":" "},null,null,{"$f":"IF(ISBLANK(Feuil5!AJ134),\" \",Feuil5!AJ134)","v":" "},{"$f":"IF(ISBLANK(Feuil5!AK134),\" \",Feuil5!AK134)","v":" "}]
[null,null,null,null,null,null,null,null,null,null,null,null,null,null,null,null,null,null,null,null,null,null,null,null,null,null,null,null,null,null,null,{"$f":"IF(ISBLANK(Feuil5!AF135),\" \",Feuil5!AF135)","v":" "},{"$f":"IF(ISBLANK(Feuil5!AG135),\" \",Feuil5!AG135)","v":" "},null,null,{"$f":"IF(ISBLANK(Feuil5!AJ135),\" \",Feuil5!AJ135)","v":" "},{"$f":"IF(ISBLANK(Feuil5!AK135),\" \",Feuil5!AK135)","v":" "}]
[null,null,null,null,null,null,null,null,null,null,null,null,null,null,null,null,null,null,null,null,null,null,null,null,null,null,null,null,null,null,null,{"$f":"IF(ISBLANK(Feuil5!AF136),\" \",Feuil5!AF136)","v":" "},{"$f":"IF(ISBLANK(Feuil5!AG136),\" \",Feuil5!AG136)","v":" "},null,null,{"$f":"IF(ISBLANK(Feuil5!AJ136),\" \",Feuil5!AJ136)","v":" "},{"$f":"IF(ISBLANK(Feuil5!AK136),\" \",Feuil5!AK136)","v":" "}]
[null,null,null,null,null,null,null,null,null,null,null,null,null,null,null,null,null,null,null,null,null,null,null,null,null,null,null,null,null,null,null,{"$f":"IF(ISBLANK(Feuil5!AF137),\" \",Feuil5!AF137)","v":" "},{"$f":"IF(ISBLANK(Feuil5!AG137),\" \",Feuil5!AG137)","v":" "},null,null,{"$f":"IF(ISBLANK(Feuil5!AJ137),\" \",Feuil5!AJ137)","v":" "},{"$f":"IF(ISBLANK(Feuil5!AK137),\" \",Feuil5!AK137)","v":" "}]
[null,null,null,null,null,null,null,null,null,null,null,null,null,null,null,null,null,null,null,null,null,null,null,null,null,null,null,null,null,null,null,{"$f":"IF(ISBLANK(Feuil5!AF138),\" \",Feuil5!AF138)","v":" "},{"$f":"IF(ISBLANK(Feuil5!AG138),\" \",Feuil5!AG138)","v":" "},null,null,{"$f":"IF(ISBLANK(Feuil5!AJ138),\" \",Feuil5!AJ138)","v":" "},{"$f":"IF(ISBLANK(Feuil5!AK138),\" \",Feuil5!AK138)","v":" "}]
[null,null,null,null,null,null,null,null,null,null,null,null,null,null,null,null,null,null,null,null,null,null,null,null,null,null,null,null,null,null,null,{"$f":"IF(ISBLANK(Feuil5!AF139),\" \",Feuil5!AF139)","v":" "},{"$f":"IF(ISBLANK(Feuil5!AG139),\" \",Feuil5!AG139)","v":" "},null,null,{"$f":"IF(ISBLANK(Feuil5!AJ139),\" \",Feuil5!AJ139)","v":" "},{"$f":"IF(ISBLANK(Feuil5!AK139),\" \",Feuil5!AK139)","v":" "}]
[null,null,null,null,null,null,null,null,null,null,null,null,null,null,null,null,null,null,null,null,null,null,null,null,null,null,null,null,null,null,null,{"$f":"IF(ISBLANK(Feuil5!AF140),\" \",Feuil5!AF140)","v":" "},{"$f":"IF(ISBLANK(Feuil5!AG140),\" \",Feuil5!AG140)","v":" "},null,null,{"$f":"IF(ISBLANK(Feuil5!AJ140),\" \",Feuil5!AJ140)","v":" "},{"$f":"IF(ISBLANK(Feuil5!AK140),\" \",Feuil5!AK140)","v":" "}]
[null,null,null,null,null,null,null,null,null,null,null,null,null,null,null,null,null,null,null,null,null,null,null,null,null,null,null,null,null,null,null,{"$f":"IF(ISBLANK(Feuil5!AF141),\" \",Feuil5!AF141)","v":" "},{"$f":"IF(ISBLANK(Feuil5!AG141),\" \",Feuil5!AG141)","v":" "},null,null,{"$f":"IF(ISBLANK(Feuil5!AJ141),\" \",Feuil5!AJ141)","v":" "},{"$f":"IF(ISBLANK(Feuil5!AK141),\" \",Feuil5!AK141)","v":" "}]
[null,null,null,null,null,null,null,null,null,null,null,null,null,null,null,null,null,null,null,null,null,null,null,null,null,null,null,null,null,null,null,{"$f":"IF(ISBLANK(Feuil5!AF142),\" \",Feuil5!AF142)","v":" "},{"$f":"IF(ISBLANK(Feuil5!AG142),\" \",Feuil5!AG142)","v":" "},null,null,{"$f":"IF(ISBLANK(Feuil5!AJ142),\" \",Feuil5!AJ142)","v":" "},{"$f":"IF(ISBLANK(Feuil5!AK142),\" \",Feuil5!AK142)","v":" "}]
[null,null,null,null,null,null,null,null,null,null,null,null,null,null,null,null,null,null,null,null,null,null,null,null,null,null,null,null,null,null,null,{"$f":"IF(ISBLANK(Feuil5!AF143),\" \",Feuil5!AF143)","v":" "},{"$f":"IF(ISBLANK(Feuil5!AG143),\" \",Feuil5!AG143)","v":" "},null,null,{"$f":"IF(ISBLANK(Feuil5!AJ143),\" \",Feuil5!AJ143)","v":" "},{"$f":"IF(ISBLANK(Feuil5!AK143),\" \",Feuil5!AK143)","v":" "}]
[null,null,null,null,null,null,null,null,null,null,null,null,null,null,null,null,null,null,null,null,null,null,null,null,null,null,null,null,null,null,null,{"$f":"IF(ISBLANK(Feuil5!AF144),\" \",Feuil5!AF144)","v":" "},{"$f":"IF(ISBLANK(Feuil5!AG144),\" \",Feuil5!AG144)","v":" "},null,null,{"$f":"IF(ISBLANK(Feuil5!AJ144),\" \",Feuil5!AJ144)","v":" "},{"$f":"IF(ISBLANK(Feuil5!AK144),\" \",Feuil5!AK144)","v":" "}]
[null,null,null,null,null,null,null,null,null,null,null,null,null,null,null,null,null,null,null,null,null,null,null,null,null,null,null,null,null,null,null,{"$f":"IF(ISBLANK(Feuil5!AF145),\" \",Feuil5!AF145)","v":" "},{"$f":"IF(ISBLANK(Feuil5!AG145),\" \",Feuil5!AG145)","v":" "},null,null,{"$f":"IF(ISBLANK(Feuil5!AJ145),\" \",Feuil5!AJ145)","v":" "},{"$f":"IF(ISBLANK(Feuil5!AK145),\" \",Feuil5!AK145)","v":" "}]
[null,null,null,null,null,null,null,null,null,null,null,null,null,null,null,null,null,null,null,null,null,null,null,null,null,null,null,null,null,null,null,{"$f":"IF(ISBLANK(Feuil5!AF146),\" \",Feuil5!AF146)","v":" "},{"$f":"IF(ISBLANK(Feuil5!AG146),\" \",Feuil5!AG146)","v":" "},null,null,{"$f":"IF(ISBLANK(Feuil5!AJ146),\" \",Feuil5!AJ146)","v":" "},{"$f":"IF(ISBLANK(Feuil5!AK146),\" \",Feuil5!AK146)","v":" "}]
[null,null,null,null,null,null,null,null,null,null,null,null,null,null,null,null,null,null,null,null,null,null,null,null,null,null,null,null,null,null,null,{"$f":"IF(ISBLANK(Feuil5!AF147),\" \",Feuil5!AF147)","v":" "},{"$f":"IF(ISBLANK(Feuil5!AG147),\" \",Feuil5!AG147)","v":" "},null,null,{"$f":"IF(ISBLANK(Feuil5!AJ147),\" \",Feuil5!AJ147)","v":" "},{"$f":"IF(ISBLANK(Feuil5!AK147),\" \",Feuil5!AK147)","v":" "}]
[null,null,null,null,null,null,null,null,null,null,null,null,null,null,null,null,null,null,null,null,null,null,null,null,null,null,null,null,null,null,null,{"$f":"IF(ISBLANK(Feuil5!AF148),\" \",Feuil5!AF148)","v":" "},{"$f":"IF(ISBLANK(Feuil5!AG148),\" \",Feuil5!AG148)","v":" "},null,null,{"$f":"IF(ISBLANK(Feuil5!AJ148),\" \",Feuil5!AJ148)","v":" "},{"$f":"IF(ISBLANK(Feuil5!AK148),\" \",Feuil5!AK148)","v":" "}]
[null,null,null,null,null,null,null,null,null,null,null,null,null,null,null,null,null,null,null,null,null,null,null,null,null,null,null,null,null,null,null,{"$f":"IF(ISBLANK(Feuil5!AF149),\" \",Feuil5!AF149)","v":" "},{"$f":"IF(ISBLANK(Feuil5!AG149),\" \",Feuil5!AG149)","v":" "},null,null,{"$f":"IF(ISBLANK(Feuil5!AJ149),\" \",Feuil5!AJ149)","v":" "},{"$f":"IF(ISBLANK(Feuil5!AK149),\" \",Feuil5!AK149)","v":" "}]
[null,null,null,null,null,null,null,null,null,null,null,null,null,null,null,null,null,null,null,null,null,null,null,null,null,null,null,null,null,null,null,{"$f":"IF(ISBLANK(Feuil5!AF150),\" \",Feuil5!AF150)","v":" "},{"$f":"IF(ISBLANK(Feuil5!AG150),\" \",Feuil5!AG150)","v":" "},null,null,{"$f":"IF(ISBLANK(Feuil5!AJ150),\" \",Feuil5!AJ150)","v":" "},{"$f":"IF(ISBLANK(Feuil5!AK150),\" \",Feuil5!AK150)","v":" "}]
[null,null,null,null,null,null,null,null,null,null,null,null,null,null,null,null,null,null,null,null,null,null,null,null,null,null,null,null,null,null,null,{"$f":"IF(ISBLANK(Feuil5!AF151),\" \",Feuil5!AF151)","v":" "},{"$f":"IF(ISBLANK(Feuil5!AG151),\" \",Feuil5!AG151)","v":" "},null,null,{"$f":"IF(ISBLANK(Feuil5!AJ151),\" \",Feuil5!AJ151)","v":" "},{"$f":"IF(ISBLANK(Feuil5!AK151),\" \",Feuil5!AK151)","v":" "}]
[null,null,null,null,null,null,null,null,null,null,null,null,null,null,null,null,null,null,null,null,null,null,null,null,null,null,null,null,null,null,null,{"$f":"IF(ISBLANK(Feuil5!AF152),\" \",Feuil5!AF152)","v":" "},{"$f":"IF(ISBLANK(Feuil5!AG152),\" \",Feuil5!AG152)","v":" "},null,null,{"$f":"IF(ISBLANK(Feuil5!AJ152),\" \",Feuil5!AJ152)","v":" "},{"$f":"IF(ISBLANK(Feuil5!AK152),\" \",Feuil5!AK152)","v":" "}]
[null,null,null,null,null,null,null,null,null,null,null,null,null,null,null,null,null,null,null,null,null,null,null,null,null,null,null,null,null,null,null,{"$f":"IF(ISBLANK(Feuil5!AF153),\" \",Feuil5!AF153)","v":" "},{"$f":"IF(ISBLANK(Feuil5!AG153),\" \",Feuil5!AG153)","v":" "},null,null,{"$f":"IF(ISBLANK(Feuil5!AJ153),\" \",Feuil5!AJ153)","v":" "},{"$f":"IF(ISBLANK(Feuil5!AK153),\" \",Feuil5!AK153)","v":" "}]
[null,null,null,null,null,null,null,null,null,null,null,null,null,null,null,null,null,null,null,null,null,null,null,null,null,null,null,null,null,null,null,{"$f":"IF(ISBLANK(Feuil5!AF154),\" \",Feuil5!AF154)","v":" "},{"$f":"IF(ISBLANK(Feuil5!AG154),\" \",Feuil5!AG154)","v":" "},null,null,{"$f":"IF(ISBLANK(Feuil5!AJ154),\" \",Feuil5!AJ154)","v":" "},{"$f":"IF(ISBLANK(Feuil5!AK154),\" \",Feuil5!AK154)","v":" "}]
[null,null,null,null,null,null,null,null,null,null,null,null,null,null,null,null,null,null,null,null,null,null,null,null,null,null,null,null,null,null,null,{"$f":"IF(ISBLANK(Feuil5!AF155),\" \",Feuil5!AF155)","v":" "},{"$f":"IF(ISBLANK(Feuil5!AG155),\" \",Feuil5!AG155)","v":" "},null,null,{"$f":"IF(ISBLANK(Feuil5!AJ155),\" \",Feuil5!AJ155)","v":" "},{"$f":"IF(ISBLANK(Feuil5!AK155),\" \",Feuil5!AK155)","v":" "}]
[null,null,null,null,null,null,null,null,null,null,null,null,null,null,null,null,null,null,null,null,null,null,null,null,null,null,null,null,null,null,null,{"$f":"IF(ISBLANK(Feuil5!AF156),\" \",Feuil5!AF156)","v":" "},{"$f":"IF(ISBLANK(Feuil5!AG156),\" \",Feuil5!AG156)","v":" "},null,null,{"$f":"IF(ISBLANK(Feuil5!AJ156),\" \",Feuil5!AJ156)","v":" "},{"$f":"IF(ISBLANK(Feuil5!AK156),\" \",Feuil5!AK156)","v":" "}]
[null,null,null,null,null,null,null,null,null,null,null,null,null,null,null,null,null,null,null,null,null,null,null,null,null,null,null,null,null,null,null,{"$f":"IF(ISBLANK(Feuil5!AF157),\" \",Feuil5!AF157)","v":" "},{"$f":"IF(ISBLANK(Feuil5!AG157),\" \",Feuil5!AG157)","v":" "},null,null,{"$f":"IF(ISBLANK(Feuil5!AJ157),\" \",Feuil5!AJ157)","v":" "},{"$f":"IF(ISBLANK(Feuil5!AK157),\" \",Feuil5!AK157)","v":" "}]
[null,null,null,null,null,null,null,null,null,null,null,null,null,null,null,null,null,null,null,null,null,null,null,null,null,null,null,null,null,null,null,{"$f":"IF(ISBLANK(Feuil5!AF158),\" \",Feuil5!AF158)","v":" "},{"$f":"IF(ISBLANK(Feuil5!AG158),\" \",Feuil5!AG158)","v":" "},null,null,{"$f":"IF(ISBLANK(Feuil5!AJ158),\" \",Feuil5!AJ158)","v":" "},{"$f":"IF(ISBLANK(Feuil5!AK158),\" \",Feuil5!AK158)","v":" "}]
[null,null,null,null,null,null,null,null,null,null,null,null,null,null,null,null,null,null,null,null,null,null,null,null,null,null,null,null,null,null,null,{"$f":"IF(ISBLANK(Feuil5!AF159),\" \",Feuil5!AF159)","v":" "},{"$f":"IF(ISBLANK(Feuil5!AG159),\" \",Feuil5!AG159)","v":" "},null,null,{"$f":"IF(ISBLANK(Feuil5!AJ159),\" \",Feuil5!AJ159)","v":" "},{"$f":"IF(ISBLANK(Feuil5!AK159),\" \",Feuil5!AK159)","v":" "}]
[null,null,null,null,null,null,null,null,null,null,null,null,null,null,null,null,null,null,null,null,null,null,null,null,null,null,null,null,null,null,null,{"$f":"IF(ISBLANK(Feuil5!AF160),\" \",Feuil5!AF160)","v":" "},{"$f":"IF(ISBLANK(Feuil5!AG160),\" \",Feuil5!AG160)","v":" "},null,null,{"$f":"IF(ISBLANK(Feuil5!AJ160),\" \",Feuil5!AJ160)","v":" "},{"$f":"IF(ISBLANK(Feuil5!AK160),\" \",Feuil5!AK160)","v":" "}]
[]
[]
[]
[]
[]
[]
[]
[]
[]
[]
[]
[]
[]
[]
[]
[]
[]
[]
[]
[]
[]
[]
[]
[]
[]
[]
[]
[]
[]
[]
[]
[]
[]
[]
[]
[]
[]
[]
[]
[]
[]
[]
[]
[]
[]
[]
[]
[]
[]
[]
[]
[]
[]
[]
[]
[]
[]
[]
[]
[]
[]
[]
[]
[]
[]
[]
[]
[]
[]
[]
[]
[]
[]
[]
[]
[]
[]
[]
[]
[]
[]
[]
[]
[]
[]
[]
[]
[]
[]
[]
[]
[]
[]
[]
[]
[]
[]
[]
[]
[]
[]
[]
[]
[]
[]
[]
[]
[]
[]
[]
[]
[]
[]
[]
[]
[]
[]
[]
[]
[]
[]
[]
[]
[]
[]
[]
[]
[]
[]
[]
[]
[]
[]
[]
["Petits calculs"]
["Point par set","par défaut"]
[null,{"$f":"IF(A297<>\"\",A297,11)","v":11}]
[]
["Victoire","Défaite","WO"]
[2,1,0,null,1E-3]
[null,null,null,null,-1E-3]
["nombre set"]
["si 21","par défaut"]
[2,{"$f":"IF(A297<>\"\",A304,3)","v":3}]

{"sheet":"Feuil2","index":1,"n_rows":38,"n_cols":21,"rows_kept":38,"cut":false,"hidden":false,"merged":[]}
[null,"Division","Phase","Journée","date","Limite de jeu","Limite envoi","Liste des clubs","N° équipe",null,null,"Liste des lieux",null,"Horaires",null,null,"Nom double"]
[null,1,1,1,"2023-09-28",{"$f":"DATE(YEAR(E2),MONTH(E2),DAY(E2)+28)","v":"2023-10-26"},{"$f":"IF(ISBLANK(E2),\" \",DATE(YEAR(E2),MONTH(E2),DAY(E2)+7))","v":"2023-10-05"},null,1,null,1,"75005 Paris, 3, quai Saint Bernard",1,"17H30",null,null,{"$f":"IF(ISBLANK(Feuil1!A9),\" \",VLOOKUP(Feuil1!A9,BDD,2,FALSE))","v":" "},{"$f":"IF(ISBLANK(Feuil1!O9),\" \",VLOOKUP(Feuil1!O9,BDD,2,FALSE))","v":" "},null,1]
[null,2,2,2,"2023-10-12","2023-11-09",{"$f":"IF(ISBLANK(E3),\" \",DATE(YEAR(E3),MONTH(E3),DAY(E3)+7))","v":"2023-10-19"},"AC BB",2,null,2,"75005 Paris, Salle Lucien GAUDIN 4, Jardin du quai Saint Bernard",2,"17H35",null,null,{"$f":"IF(ISBLANK(Feuil1!A10),\" \",VLOOKUP(Feuil1!A10,BDD,2,FALSE))","v":" "},{"$f":"IF(ISBLANK(Feuil1!O10),\" \",VLOOKUP(Feuil1!O10,BDD,2,FALSE))","v":" "},null,2,"AC BB"]
[null,3,"BAR",3,"2023-11-16","2023-12-14","2023-11-23","AS ARENES",3,null,3,"75009 Paris, Gymnase GAUGUIN 33 rue Milton",3,"17H40",null,null,{"$f":"IF(ISBLANK(Feuil1!A11),\" \",VLOOKUP(Feuil1!A11,BDD,2,FALSE))","v":" "},{"$f":"IF(ISBLANK(Feuil1!O11),\" \",VLOOKUP(Feuil1!O11,BDD,2,FALSE))","v":" "},null,3,"AS ARENES"]
[null,null,null,4,"2023-11-30","2023-12-28","2023-12-07","AS DILA",4,null,4,"75010 Paris, 155 avenue Parmentier",4,"17H45",null,null,null,null,null,4,"AS DILA"]
[null,null,null,5,"2023-12-14","2024-01-11","2023-12-21","ASCE",5,null,5,"75013 Paris, 25 avenue de la porte d'Ivry (salle spécifique)",5,"17H50",null,"Double",null,null,null,5,"ASCE"]
[null,null,null,6,"2024-01-11","2024-02-08","2024-01-18","CPS X",6,null,6,"75015 Paris, 13 rue du général Guillaumat",6,"17H55",null,1,{"$f":"IF(AND(Feuil1!A18=-0.001,Feuil1!B18=-0.001,Feuil1!C18=-0.001),\"WO  \",PROPER(Q2&\" - \"&Q3))","v":"  -  "},{"$f":"IF(AND(Feuil1!A18=0.001,Feuil1!B18=0.001,Feuil1!C18=0.001),\"WO  \",PROPER(R2&\" - \"&R3))","v":"  -  "},null,6,"CPS X"]
[null,null,null,7,"2024-01-25",{"$f":"E8","v":"2024-01-25"},"2024-02-01","ESC XV",null,null,7,"75015 Paris, 62 rue Cambronne",7,"18H00",null,2,{"$f":"IF(AND(Feuil1!A18=-0.001,Feuil1!B18=-0.001,Feuil1!C18=-0.001),\"WO  \",PROPER(Q2&\" - \"&Q4))","v":"  -  "},{"$f":"IF(AND(Feuil1!A18=0.001,Feuil1!B18=0.001,Feuil1!C18=0.001),\"WO  \",PROPER(R2&\" - \"&R4))","v":"  -  "},null,7,"ESC XV"]
[null,null,null,null,null,null,null,"PING SF",null,null,8,"91160 Longjumeau, Gymnase St Exupéry rue Maryse Bastié",8,"18H05",null,3,{"$f":"IF(AND(Feuil1!A18=-0.001,Feuil1!B18=-0.001,Feuil1!C18=-0.001),\"WO  \",PROPER(Q3&\" - \"&Q4))","v":"  -  "},{"$f":"IF(AND(Feuil1!A18=0.001,Feuil1!B18=0.001,Feuil1!C18=0.001),\"WO  \",PROPER(R3&\" - \"&R4))","v":"  -  "},null,8,"PING SF"]
[null,null,null,8,"2024-02-29",{"$f":"E10","v":"2024-02-29"},{"$f":"IF(ISBLANK(E10),\" \",DATE(YEAR(E10),MONTH(E10),DAY(E10)+7))","v":"2024-03-07"},"SPORTS ET LOISIRS CGI",null,null,9,"92100 Boulogne Billancourt, 165 rue du Vieux Pont de Sèvres",9,"18H10",null,null,null,null,null,9,"SPORTS ET LOISIRS CGI"]
[null,null,null,9,"2024-03-21","2024-04-18","2024-03-28","US CORG",null,null,10,"92220 Bagneux, 11 avenue Jean Jaurès",10,"18H15",null,null,null,null,null,10,"US CORG"]
[null,null,null,10,"2024-03-28","2024-04-25","2024-04-04",null,null,null,11,"93130 Noisy le Sec, 6 rue de la Gare",11,"18H20",null,null,null,null,null,11]
[null,null,null,11,"2024-04-04","2024-05-02","2024-04-11",null,null,null,12,"94320 Thiais, Palais omnisport de Thiais Place Vincent Van Gogh",12,"18H25",null,null,null,null,null,12]
[null,null,null,12,"2024-04-05","2024-05-03","2024-04-12",null,null,null,13,"94800 Villejuif, 54 avenue de la République (salle des fêtes du groupe hospitalier Paul GUIRAUD)",13,"18H30"]
[null,null,null,13,"2024-05-16",{"$f":"DATE(YEAR(E16),MONTH(E16),DAY(E16)-1)","v":"2024-05-22"},"2024-05-23",null,null,null,14,"95747 Roissy CDG, RDC Bât 4503 Route de l'Arpenteur Zone Entretien",14,"18H35"]
[null,null,null,14,"2024-05-23",{"$f":"E16","v":"2024-05-23"},"2024-05-30",null,null,null,null,null,15,"18H40"]
[null,null,null,15,"2024-05-30",{"$f":"E17","v":"2024-05-30"},"2022-06-20",null,null,null,null,null,16,"18H45"]
[null,null,null,"BAR","2024-05-30",{"$f":"E18","v":"2024-05-30"},"2024-06-06",null,null,null,null,null,17,"18H50"]
[null,null,null,17,"-",{"$f":"E19","v":"-"},null,null,null,null,null,null,18,"18H55"]
[null,null,null,18,"-",{"$f":"E20","v":"-"},null,null,null,null,null,null,19,"19H00"]
[null,null,null,null,null,null,null,null,null,null,null,null,20,"19H05"]
[null,null,null,null,null,null,null,null,null,null,null,null,21,"19H10"]
[null,null,null,null,null,null,null,null,null,null,null,null,22,"19H15"]
[null,null,null,null,null,null,null,null,null,null,null,null,23,"19H20"]
[null,null,null,null,null,null,null,null,null,null,null,null,24,"19H25"]
[null,null,null,null,null,null,null,null,null,null,null,null,25,"19H30"]
[null,null,null,null,null,null,null,null,null,null,null,null,26,"19H35"]
[null,null,null,null,null,null,null,null,null,null,null,null,27,"19H40"]
[null,null,null,null,null,null,null,null,null,null,null,null,28,"19H45"]
[null,null,null,null,null,null,null,null,null,null,null,null,29,"19H50"]
[null,null,null,null,null,null,null,null,null,null,null,null,30,"19H55"]
[null,null,null,null,null,null,null,null,null,null,null,null,31,"20H00"]
[null,null,null,null,null,null,null,null,null,null,null,null,32,"20H05"]
[null,null,null,null,null,null,null,null,null,null,null,null,33,"20H10"]
[null,null,null,null,null,null,null,null,null,null,null,null,34,"20H15"]
[null,null,null,null,null,null,null,null,null,null,null,null,35,"20H20"]
[null,null,null,null,null,null,null,null,null,null,null,null,36,"20H25"]
[null,null,null,null,null,null,null,null,null,null,null,null,37,"20H30"]

{"sheet":"Feuil3","index":2,"n_rows":204,"n_cols":10,"rows_kept":204,"cut":false,"hidden":false,"merged":[]}
["","N° de licence","NOM - Prénom","Classement","Club",{"$f":"B1","v":"N° de licence"},null,"NOM - Prénom","N° de licence","Club"]
[null,"0180313","CHAPUIS Alexandre",80,"ASCE",{"$f":"B2","v":"0180313"},null,"CHAPUIS Alexandre","0180313","ASCE"]
[null,"0180317","BAILLY Laurent",55,"ASCE","0180317",null,"BAILLY Laurent","0180317","ASCE"]
[null,"0180318","MERELLE Jacques",80,"ASCE","0180318",null,"MERELLE Jacques","0180318","ASCE"]
[null,"0180319","FERGUEN Lakhdar",55,"ASCE","0180319",null,"FERGUEN Lakhdar","0180319","ASCE"]
[null,"0180320","GAROT Loïc",20,"ASCE","0180320",null,"GAROT Loïc","0180320","ASCE"]
[null,"0180323","LY Estelle",80,"ASCE","0180323",null,"LY Estelle","0180323","ASCE"]
[null,"0180326","THISSE Claude",60,"ASCE","0180326",null,"THISSE Claude","0180326","ASCE"]
[null,"0180328","HUOI Trang Meng",40,"ASCE","0180328",null,"HUOI Trang Meng","0180328","ASCE"]
[null,"0180329","ARNOUT Frédéric",50,"ASCE","0180329",null,"ARNOUT Frédéric","0180329","ASCE"]
[null,"0181726","PINET Alain",95,"AS ARENES","0181726",null,"PINET Alain","0181726","AS ARENES"]
[null,"0181731","AGOSTINIS Raphaël",65,"AS ARENES","0181731",null,"AGOSTINIS Raphaël","0181731","AS ARENES"]
[null,"0181732","PETITJEAN Stéphane",95,"AS ARENES","0181732",null,"PETITJEAN Stéphane","0181732","AS ARENES"]
[null,"0181749","JEANJEAN Christian",90,"AS ARENES","0181749",null,"JEANJEAN Christian","0181749","AS ARENES"]
[null,"0181759","MARCEROU Philippe",55,"AS ARENES","0181759",null,"MARCEROU Philippe","0181759","AS ARENES"]
[null,"0181768","SIMON Charles",80,"AS ARENES","0181768",null,"SIMON Charles","0181768","AS ARENES"]
[null,"0181820","RIOU Anthony",65,"AS ARENES","0181820",null,"RIOU Anthony","0181820","AS ARENES"]
[null,"0182829","MAMOU Samuel",40,"SPORTS ET LOISIRS CGI","0182829",null,"MAMOU Samuel","0182829","SPORTS ET LOISIRS CGI"]
[null,"0182836","DECOURTY Fabien",80,"SPORTS ET LOISIRS CGI","0182836",null,"DECOURTY Fabien","0182836","SPORTS ET LOISIRS CGI"]
[null,"0182839","PEREZ Pierre",40,"SPORTS ET LOISIRS CGI","0182839",null,"PEREZ Pierre","0182839","SPORTS ET LOISIRS CGI"]
[null,"0182848","SONGEUR Bruno",95,"SPORTS ET LOISIRS CGI","0182848",null,"SONGEUR Bruno","0182848","SPORTS ET LOISIRS CGI"]
[null,"0182849","GBAGUIDI Jocelyn",95,"SPORTS ET LOISIRS CGI","0182849",null,"GBAGUIDI Jocelyn","0182849","SPORTS ET LOISIRS CGI"]
[null,"0182854","CAROFF Jean-Yves",95,"SPORTS ET LOISIRS CGI","0182854",null,"CAROFF Jean-Yves","0182854","SPORTS ET LOISIRS CGI"]
[null,"0182855","LOISEAU Romain",40,"SPORTS ET LOISIRS CGI","0182855",null,"LOISEAU Romain","0182855","SPORTS ET LOISIRS CGI"]
[null,"0182860","MALET Damien",40,"SPORTS ET LOISIRS CGI","0182860",null,"MALET Damien","0182860","SPORTS ET LOISIRS CGI"]
[null,"0182889","RISTORI Fabien",95,"AS DILA","0182889",null,"RISTORI Fabien","0182889","AS DILA"]
[null,"0182890","ACHAOUI Tarik",95,"AS DILA","0182890",null,"ACHAOUI Tarik","0182890","AS DILA"]
[null,"0183443","BEAUDUCEAU Francine",90,"ASCE","0183443",null,"BEAUDUCEAU Francine","0183443","ASCE"]
[null,"0183827","BERNARD Olivier",60,"ESC XV","0183827",null,"BERNARD Olivier","0183827","ESC XV"]
[null,"0183828","LESTIEN Denis",70,"ESC XV","0183828",null,"LESTIEN Denis","0183828","ESC XV"]
[null,"0183829","GIRARD Christophe",45,"ESC XV","0183829",null,"GIRARD Christophe","0183829","ESC XV"]
[null,"0183830","LECLERC Emmanuel",90,"ESC XV","0183830",null,"LECLERC Emmanuel","0183830","ESC XV"]
[null,"0183830","LEGER Bertrand",60,"ESC XV","0183830",null,"LEGER Bertrand","0183830","ESC XV"]
[null,"0183841","HRISTIC Milos",75,"ESC XV","0183841",null,"HRISTIC Milos","0183841","ESC XV"]
[null,"0183862","BOURCART Jean-Jacques",90,"ESC XV","0183862",null,"BOURCART Jean-Jacques","0183862","ESC XV"]
[null,"0183904","BESSON Matthieu",55,"ESC XV","0183904",null,"BESSON Matthieu","0183904","ESC XV"]
[null,"0183930","QUIRON-BLONDIN Florian",70,"ESC XV","0183930",null,"QUIRON-BLONDIN Florian","0183930","ESC XV"]
[null,"0183966","PLANCQ Clément",80,"ESC XV","0183966",null,"PLANCQ Clément","0183966","ESC XV"]
[null,"0183969","MAURAISIN Gilles",95,"ESC XV","0183969",null,"MAURAISIN Gilles","0183969","ESC XV"]
[null,"0183994","NGUYEN Duc Hien",60,"ESC XV","0183994",null,"NGUYEN Duc Hien","0183994","ESC XV"]
[null,"0184052","RICHOU Agnès",90,"US CORG","0184052",null,"RICHOU Agnès","0184052","US CORG"]
[null,"0184086","DE MERCEY Come",45,"ESC XV","0184086",null,"DE MERCEY Come","0184086","ESC XV"]
[null,"0184164","LACROIX Renaud",95,"ESC XV","0184164",null,"LACROIX Renaud","0184164","ESC XV"]
[null,"0184165","MASLOW-SAIDI Adrien",95,"ESC XV","0184165",null,"MASLOW-SAIDI Adrien","0184165","ESC XV"]
[null,"0184176","LE ROUX Edern",85,"ESC XV","0184176",null,"LE ROUX Edern","0184176","ESC XV"]
[null,"0184237","BLOCH Nicolas",75,"ESC XV","0184237",null,"BLOCH Nicolas","0184237","ESC XV"]
[null,"0184238","BELLUZZO Laure",80,"ESC XV","0184238",null,"BELLUZZO Laure","0184238","ESC XV"]
[null,"0184270","MONIER Aurélien",95,"ESC XV","0184270",null,"MONIER Aurélien","0184270","ESC XV"]
[null,"0184271","GIROUD Souhil",60,"ESC XV","0184271",null,"GIROUD Souhil","0184271","ESC XV"]
[null,"0184295","BLOCH Philippe",95,"ESC XV","0184295",null,"BLOCH Philippe","0184295","ESC XV"]
[null,"0184311","BLANCHE Dominique",75,"ESC XV","0184311",null,"BLANCHE Dominique","0184311","ESC XV"]
[null,"0184358","BONNEFOY-CLAUDET Bertrand",70,"ESC XV","0184358",null,"BONNEFOY-CLAUDET Bertrand","0184358","ESC XV"]
[null,"0184386","DE CHAMPRIS Louis",55,"ESC XV","0184386",null,"DE CHAMPRIS Louis","0184386","ESC XV"]
[null,"0184504","VIOLAS Noé",90,"ESC XV","0184504",null,"VIOLAS Noé","0184504","ESC XV"]
[null,"0184505","SAUTET Antoine",95,"ESC XV","0184505",null,"SAUTET Antoine","0184505","ESC XV"]
[null,"0184557","MATHY Guillaume",75,"ESC XV","0184557",null,"MATHY Guillaume","0184557","ESC XV"]
[null,"0184594","ROUBINET Clément",80,"ESC XV","0184594",null,"ROUBINET Clément","0184594","ESC XV"]
[null,"0184626","POULLAOUEC Tristan",55,"ESC XV","0184626",null,"POULLAOUEC Tristan","0184626","ESC XV"]
[null,"0184804","WALLAERT Clément",85,"ESC XV","0184804",null,"WALLAERT Clément","0184804","ESC XV"]
[null,"0184938","BLANC Corentin",60,"ESC XV","0184938",null,"BLANC Corentin","0184938","ESC XV"]
[null,"0184941","BELLICHA Mickaël",90,"ESC XV","0184941",null,"BELLICHA Mickaël","0184941","ESC XV"]
[null,"0184949","ISKANDAR Rami",65,"ESC XV","0184949",null,"ISKANDAR Rami","0184949","ESC XV"]
[null,"0185110","FAUVET-DELIGNY Charles",50,"ESC XV","0185110",null,"FAUVET-DELIGNY Charles","0185110","ESC XV"]
[null,"0185643","FUCHS Michel",75,"CPS X","0185643",null,"FUCHS Michel","0185643","CPS X"]
[null,"0185654","DELAVERGNE Romuald",35,"CPS X","0185654",null,"DELAVERGNE Romuald","0185654","CPS X"]
[null,"0185655","MONIER Clément",45,"CPS X","0185655",null,"MONIER Clément","0185655","CPS X"]
[null,"0185656","CARIME Malik",75,"CPS X",{"$f":"B67","v":"0185656"},null,"CARIME Malik","0185656","CPS X"]
[null,"0185659","LEDER Danny",95,"CPS X","0185659",null,"LEDER Danny","0185659","CPS X"]
[null,"0185661","GRYNBERG Bernard",80,"CPS X","0185661",null,"GRYNBERG Bernard","0185661","CPS X"]
[null,"0185662","WAELBROECK Laurent",45,"CPS X","0185662",null,"WAELBROECK Laurent","0185662","CPS X"]
[null,"0185663","PENCREACH Jean-Yves",95,"CPS X","0185663",null,"PENCREACH Jean-Yves","0185663","CPS X"]
[null,"0185664","ZENI Patrick",50,"CPS X","0185664",null,"ZENI Patrick","0185664","CPS X"]
[null,"0185668","BOILLON Raphaël",55,"US CORG","0185668",null,"BOILLON Raphaël","0185668","US CORG"]
[null,"0185678","RENAUDIE Eric",70,"CPS X","0185678",null,"RENAUDIE Eric","0185678","CPS X"]
[null,"0185695","NERA Patrick",45,"CPS X","0185695",null,"NERA Patrick","0185695","CPS X"]
[null,"0185714","HAYEK Olivier",45,"CPS X","0185714",null,"HAYEK Olivier","0185714","CPS X"]
[null,"0185715","WAELBROECK Alexandre",75,"CPS X","0185715",null,"WAELBROECK Alexandre","0185715","CPS X"]
[null,"0185717","EWANE Alexandre",45,"CPS X","0185717",null,"EWANE Alexandre","0185717","CPS X"]
[null,"0185718","HERSKOVITS Edith",95,"CPS X","0185718",null,"HERSKOVITS Edith","0185718","CPS X"]
[null,"0185729","BROCARD Francis",80,"CPS X","0185729",null,"BROCARD Francis","0185729","CPS X"]
[null,"0185730","NGUYEN Nam Phong",70,"CPS X","0185730",null,"NGUYEN Nam Phong","0185730","CPS X"]
[null,"0185762","BIEGANSKI Julien",55,"CPS X","0185762",null,"BIEGANSKI Julien","0185762","CPS X"]
[null,"0185818","REBONDY Patrick",65,"US CORG","0185818",null,"REBONDY Patrick","0185818","US CORG"]
[null,"0185837","BELLANGER David",70,"CPS X","0185837",null,"BELLANGER David","0185837","CPS X"]
[null,"0185854","KOZIMOR Micka",55,"PING SF","0185854",null,"KOZIMOR Micka","0185854","PING SF"]
[null,"0185862","KHA Thomas",90,"CPS X","0185862",null,"KHA Thomas","0185862","CPS X"]
[null,"0185865","FISCHER Laurent",65,"CPS X","0185865",null,"FISCHER Laurent","0185865","CPS X"]
[null,"0185945","BRUANDET Pascal",90,"CPS X","0185945",null,"BRUANDET Pascal","0185945","CPS X"]
[null,"0186151","BONNEFOY Guy",90,"CPS X","0186151",null,"BONNEFOY Guy","0186151","CPS X"]
[null,"0186174","SLIMANE Tristan",70,"CPS X","0186174",null,"SLIMANE Tristan","0186174","CPS X"]
[null,"0186238","OUBRE Guillaume",35,"CPS X","0186238",null,"OUBRE Guillaume","0186238","CPS X"]
[null,"0186247","MIMOUN Mounir",95,"CPS X","0186247",null,"MIMOUN Mounir","0186247","CPS X"]
[null,"0186367","LEFEBVRE Jérôme",80,"CPS X","0186367",null,"LEFEBVRE Jérôme","0186367","CPS X"]
[null,"0187143","FORICHER Guy",90,"US CORG","0187143",null,"FORICHER Guy","0187143","US CORG"]
[null,"0187144","FAVREAU Franck",65,"US CORG","0187144",null,"FAVREAU Franck","0187144","US CORG"]
[null,"0187145","BIZEUL Bruno",65,"US CORG","0187145",null,"BIZEUL Bruno","0187145","US CORG"]
[null,"0187146","KOTIA Samuel",45,"US CORG","0187146",null,"KOTIA Samuel","0187146","US CORG"]
[null,"0187147","GOVINDARASSOU Ragouramane",55,"US CORG","0187147",null,"GOVINDARASSOU Ragouramane","0187147","US CORG"]
[null,"0187148","BARBARIA Stéphane",70,"US CORG","0187148",null,"BARBARIA Stéphane","0187148","US CORG"]
[null,"0187151","LE PETIT Joris",65,"US CORG","0187151",null,"LE PETIT Joris","0187151","US CORG"]
[null,"0187152","NIETO Michel",55,"US CORG","0187152",null,"NIETO Michel","0187152","US CORG"]
[null,"0187154","LACHAMBRE Julien",75,"US CORG","0187154",null,"LACHAMBRE Julien","0187154","US CORG"]
[null,"0187156","VIALLE Cécile",90,"PING SF","0187156",null,"VIALLE Cécile","0187156","PING SF"]
[null,"0187158","N'DIAYE Nourdine",70,"US CORG","0187158",null,"N'DIAYE Nourdine","0187158","US CORG"]
[null,"0187160","POPOV",65,"US CORG","0187160",null,"POPOV","0187160","US CORG"]
[null,"0187161","BAUCHET Ivan",95,"US CORG","0187161",null,"BAUCHET Ivan","0187161","US CORG"]
[null,"0187162","FOUGERES Antoine",55,"US CORG","0187162",null,"FOUGERES Antoine","0187162","US CORG"]
[null,"0187163","HANSEN Rémi",35,"US CORG","0187163",null,"HANSEN Rémi","0187163","US CORG"]
[null,"0187165","NGUYEN Charles",55,"US CORG","0187165",null,"NGUYEN Charles","0187165","US CORG"]
[null,"0187166","COLLET Arnaud",60,"US CORG","0187166",null,"COLLET Arnaud","0187166","US CORG"]
[null,"0187168","CHOR Sopheak",55,"US CORG","0187168",null,"CHOR Sopheak","0187168","US CORG"]
[null,"0187169","MARQUES Emanuel",90,"US CORG","0187169",null,"MARQUES Emanuel","0187169","US CORG"]
[null,"0205125","MENDEL Stéphane",80,"PING SF","0205125",null,"MENDEL Stéphane","0205125","PING SF"]
[null,"0205128","HUYGHE Laurent",55,"PING SF","0205128",null,"HUYGHE Laurent","0205128","PING SF"]
[null,"0205132","SCHULLER Eric",40,"AC BB","0205132",null,"SCHULLER Eric","0205132","AC BB"]
[null,"0205133","HARBONN Jacques",75,"PING SF","0205133",null,"HARBONN Jacques","0205133","PING SF"]
[null,"0225644","DROUILLAT Grégory",50,"AC BB","0225644",null,"DROUILLAT Grégory","0225644","AC BB"]
[null,"0227528","HERNANDEZ Jean-Marie",40,"CPS X","0227528",null,"HERNANDEZ Jean-Marie","0227528","CPS X"]
[null,"0227530","MAHEO Charles",55,"CPS X","0227530",null,"MAHEO Charles","0227530","CPS X"]
[null,"0232780","CARVALHO Nathalie",80,"US CORG","0232780",null,"CARVALHO Nathalie","0232780","US CORG"]
[null,"0233445","COUTURAS Fabrice",75,"US CORG","0233445",null,"COUTURAS Fabrice","0233445","US CORG"]
[null,"0233481","NATAF Isabelle",70,"US CORG","0233481",null,"NATAF Isabelle","0233481","US CORG"]
[null,"0233483","MIASKIEWICZ Jean-Luc",65,"US CORG","0233483",null,"MIASKIEWICZ Jean-Luc","0233483","US CORG"]
[null,"0233699","CAPITAINE Pierre-Louis",40,"CPS X","0233699",null,"CAPITAINE Pierre-Louis","0233699","CPS X"]
[null,"0235006","MORERA Laurent",55,"US CORG","0235006",null,"MORERA Laurent","0235006","US CORG"]
[null,"0241072","CHAMBON Philippe",95,"CPS X","0241072",null,"CHAMBON Philippe","0241072","CPS X"]
[null,"0251803","BRETON Benoît",95,"ESC XV","0251803",null,"BRETON Benoît","0251803","ESC XV"]
[null,"0253693","BEAUVIEUX Rémi",95,"SPORTS ET LOISIRS CGI","0253693",null,"BEAUVIEUX Rémi","0253693","SPORTS ET LOISIRS CGI"]
[null,"0253696","DURAND Benoît",95,"SPORTS ET LOISIRS CGI","0253696",null,"DURAND Benoît","0253696","SPORTS ET LOISIRS CGI"]
[null,"0259941","BOTTIAU Christopher",65,"SPORTS ET LOISIRS CGI","0259941",null,"BOTTIAU Christopher","0259941","SPORTS ET LOISIRS CGI"]
[null,"0264159","DEBAENE Quentin",85,"ESC XV",{"$f":"B131","v":"0264159"},null,"DEBAENE Quentin","0264159","ESC XV"]
[null,"0269402","PIMOR Xavier",65,"US CORG","0269402",null,"PIMOR Xavier","0269402","US CORG"]
[null,"0277932","DE ROTALIER Bruno",75,"ESC XV","0277932",null,"DE ROTALIER Bruno","0277932","ESC XV"]
[null,"0280309","CAHOREAU Serge",90,"ASCE","0280309",null,"CAHOREAU Serge","0280309","ASCE"]
[null,"0280592","PLANSON Jérôme",45,"US CORG","0280592",null,"PLANSON Jérôme","0280592","US CORG"]
[null,"0288851","ALLAUX Raymond",60,"CPS X","0288851",null,"ALLAUX Raymond","0288851","CPS X"]
[null,"0289730","SOK Ton",60,"US CORG","0289730",null,"SOK Ton","0289730","US CORG"]
[null,"0290028","LARRECQ Rémy",80,"ESC XV","0290028",null,"LARRECQ Rémy","0290028","ESC XV"]
[null,"0290211","DUCLOY Marianne",95,"US CORG","0290211",null,"DUCLOY Marianne","0290211","US CORG"]
[null,"0290212","PROUTEAU David",95,"US CORG","0290212",null,"PROUTEAU David","0290212","US CORG"]
[null,"0317444","GUILLOTEAU Françoise",65,"ASCE","0317444",null,"GUILLOTEAU Françoise","0317444","ASCE"]
[null,"0317447","GUILLOCHEAU Philippe",50,"ASCE","0317447",null,"GUILLOCHEAU Philippe","0317447","ASCE"]
[null,"0319504","CHARLIER Mathilde",55,"CPS X","0319504",null,"CHARLIER Mathilde","0319504","CPS X"]
[null,"0319763","BENJELLOUN Omar",65,"ESC XV","0319763",null,"BENJELLOUN Omar","0319763","ESC XV"]
[null,"0319773","BERNET Alexis",80,"ESC XV","0319773",null,"BERNET Alexis","0319773","ESC XV"]
[null,"0324074","LU Augustin",50,"US CORG","0324074",null,"LU Augustin","0324074","US CORG"]
[null,"0324781","CHOI Byoungmin",35,"ESC XV","0324781",null,"CHOI Byoungmin","0324781","ESC XV"]
[null,"0326016","PIAU Florence",95,"SPORTS ET LOISIRS CGI","0326016",null,"PIAU Florence","0326016","SPORTS ET LOISIRS CGI"]
[null,"0331054","SCHNEIDER Jean-François",90,"ESC XV","0331054",null,"SCHNEIDER Jean-François","0331054","ESC XV"]
[null,"0333027","DE VOS Victor",95,"AS ARENES","0333027",null,"DE VOS Victor","0333027","AS ARENES"]
[null,"0336694","SAMAHA Walid",60,"ESC XV","0336694",null,"SAMAHA Walid","0336694","ESC XV"]
[null,"0338602","BARTENS Xavier",95,"CPS X","0338602",null,"BARTENS Xavier","0338602","CPS X"]
[null,"0342440","MARECAR Arafath",95,"SPORTS ET LOISIRS CGI","0342440",null,"MARECAR Arafath","0342440","SPORTS ET LOISIRS CGI"]
[null,"0348627","FEROLDI Paul",70,"ASCE","0348627",null,"FEROLDI Paul","0348627","ASCE"]
[null,"0348628","VITTONATO Didier",95,"ASCE","0348628",null,"VITTONATO Didier","0348628","ASCE"]
[null,"0353325","TORCHEUX Arnaud",90,"AS ARENES","0353325",null,"TORCHEUX Arnaud","0353325","AS ARENES"]
[null,"0355192","JEAN-CHARLES Jérôme",55,"ASCE","0355192",null,"JEAN-CHARLES Jérôme","0355192","ASCE"]
[null,"0358326","LIEUTAUD Antoine",40,"SPORTS ET LOISIRS CGI","0358326",null,"LIEUTAUD Antoine","0358326","SPORTS ET LOISIRS CGI"]
[null,"0358540","AUGEREAU Sébastien",85,"ESC XV","0358540",null,"AUGEREAU Sébastien","0358540","ESC XV"]
[null,"0360778","SOARES Daniel",10,"US CORG","0360778",null,"SOARES Daniel","0360778","US CORG"]
[null,"0360779","RIBEIRO Julien",15,"US CORG","0360779",null,"RIBEIRO Julien","0360779","US CORG"]
[null,"0361181","MORINI Thierry",85,"ESC XV","0361181",null,"MORINI Thierry","0361181","ESC XV"]
[null,"0361182","EMOND Arnaud",55,"US CORG","0361182",null,"EMOND Arnaud","0361182","US CORG"]
[null,"0368192","CORDIER François",80,"ASCE","0368192",null,"CORDIER François","0368192","ASCE"]
[null,"0368761","AUTRIVE Céline",90,"PING SF","0368761",null,"AUTRIVE Céline","0368761","PING SF"]
[null,"0370361","SAINT-GERMES Yan",95,"ESC XV","0370361",null,"SAINT-GERMES Yan","0370361","ESC XV"]
[null,"0372309","BONIN Benjamin",60,"ESC XV","0372309",null,"BONIN Benjamin","0372309","ESC XV"]
[null,"0372337","NORMAND Guillaume",55,"US CORG","0372337",null,"NORMAND Guillaume","0372337","US CORG"]
[null,"0372380","BACHRI Karim",90,"ESC XV","0372380",null,"BACHRI Karim","0372380","ESC XV"]
[null,"0378505","KAZANCHAN Nicolay",80,"ESC XV","0378505",null,"KAZANCHAN Nicolay","0378505","ESC XV"]
[null,"0380937","TAPIA Jacky",45,"ASCE","0380937",null,"TAPIA Jacky","0380937","ASCE"]
[null,"0381103","RANDON Vincent",75,"CPS X","0381103",null,"RANDON Vincent","0381103","CPS X"]
[null,"0381974","BOULFROY Pauline",95,"US CORG","0381974",null,"BOULFROY Pauline","0381974","US CORG"]
[null,"0390109","CHESNOY Olivier",95,"CPS X","0390109",null,"CHESNOY Olivier","0390109","CPS X"]
[null,"0412009","GUALA Didier",50,"PING SF","0412009",null,"GUALA Didier","0412009","PING SF"]
[null,"0415192","BOUCHE Thomas",60,"ESC XV","0415192",null,"BOUCHE Thomas","0415192","ESC XV"]
[null,"0416991","REVESCHE Nicolas",40,"ASCE","0416991",null,"REVESCHE Nicolas","0416991","ASCE"]
[null,"0416992","REVESCHE Corélie",65,"ASCE","0416992",null,"REVESCHE Corélie","0416992","ASCE"]
[null,"0417460","RINALDO Franck",35,"US CORG","0417460",null,"RINALDO Franck","0417460","US CORG"]
[null,"0417461","ALI Kanate",5,"US CORG","0417461",null,"ALI Kanate","0417461","US CORG"]
[null,"0417754","GONTARD Nicolas",55,"ESC XV","0417754",null,"GONTARD Nicolas","0417754","ESC XV"]
[null,"0421507","BOSSIS Nathan",30,"SPORTS ET LOISIRS CGI","0421507",null,"BOSSIS Nathan","0421507","SPORTS ET LOISIRS CGI"]
[null,"0423027","HANFFOU Sarah",15,"PING SF","0423027",null,"HANFFOU Sarah","0423027","PING SF"]
[null,"0423270","HUYGHE Océane",95,"PING SF","0423270",null,"HUYGHE Océane","0423270","PING SF"]
[null,"0423745","GAO Yvan",75,"US CORG","0423745",null,"GAO Yvan","0423745","US CORG"]
[null,"0423746","PITHON Anne-Sophie",95,"US CORG","0423746",null,"PITHON Anne-Sophie","0423746","US CORG"]
[null,"0423783","DUHAYON Pierre",70,"US CORG","0423783",null,"DUHAYON Pierre","0423783","US CORG"]
[null,"0423792","CHARRUAULT Alain",85,"PING SF","0423792",null,"CHARRUAULT Alain","0423792","PING SF"]
[null,"0423816","LE BOURG Virginie",50,"AC BB","0423816",null,"LE BOURG Virginie","0423816","AC BB"]
[null,"0423960","NOUBARD PACHA Rudolphe",70,"PING SF","0423960",null,"NOUBARD PACHA Rudolphe","0423960","PING SF"]
[null,"0424565","ALBOT Steve",95,"US CORG","0424565",null,"ALBOT Steve","0424565","US CORG"]
[null,"0424567","OMRANE Inès",95,"US CORG","0424567",null,"OMRANE Inès","0424567","US CORG"]
[null,"0424668","MIGADE Jackson",40,"PING SF","0424668",null,"MIGADE Jackson","0424668","PING SF"]
[null,"0425111","CLAVERIE Tanguy",50,"ASCE","0425111",null,"CLAVERIE Tanguy","0425111","ASCE"]
[null,"0425147","SCHAFER Cyril",40,"AC BB",{"$f":"B195","v":"0425147"},null,"SCHAFER Cyril","0425147","AC BB"]
[null,"0425696","BOUDINOT Christophe",95,"PING SF","0425696",null,"BOUDINOT Christophe","0425696","PING SF"]
[null,"0425835","WANTIER Stéphane",50,"ASCE","0425835",null,"WANTIER Stéphane","0425835","ASCE"]
[null,"0429306","GUNCU Huseyin",80,"PING SF","0429306",null,"GUNCU Huseyin","0429306","PING SF"]
[null,"0429314","LEONARD Vincent",60,"PING SF","0429314",null,"LEONARD Vincent","0429314","PING SF"]
[null,"0431465","CHAMPEIL-DESPLATS Véronique",75,"PING SF","0431465",null,"CHAMPEIL-DESPLATS Véronique","0431465","PING SF"]
[null,"0431585","MERLO Jean-Marc",95,"AS DILA","0431585",null,"MERLO Jean-Marc","0431585","AS DILA"]
[null,"0433034","NUGER Grégoire",95,"AS DILA","0433034",null,"NUGER Grégoire","0433034","AS DILA"]
[null,"0433205","JACQUET Eric",95,"AS DILA","0433205",null,"JACQUET Eric","0433205","AS DILA"]
[null,0,"Wo",null,"x",{"$f":"B204","v":0},null,"Wo",0,"x"]

{"sheet":"Feuil4","index":3,"n_rows":26,"n_cols":126,"rows_kept":26,"cut":false,"hidden":false,"merged":[]}
["Fédération Sportive et Gymnique du Travail",null,null,null,null,null,null,null,null,null,null,null,null,null,null,null,null,null,null,null,null,null,null,null,null,null,null,null,null,null,null,null,null,null,null,null,null,null,null,null,null,null,null,null,null,null,null,null,null,null,null,null,null,null,null,null,null,null,null,null,null,null,null,null,null,null,null,null,null,null,null,null,null,null,null,null,null,null,null,null,null,null,null,null,null,null,null,null,null,null,null,null,null,null,null,null,null,null,null,null,null,null,null,null,null,null,null,null,null,null,null,null,null,null,null,null,null,null,null,null,null,null,null,null,null,"Date version = 28/09/2023"]
["Championnat par équipes",null,null,null,null,null,null,null,null,null,"D"]
[null,"Date :",null,null,null,null,null,null,null,"Heure officielle :"]
[null,"Date réelle :",null,null,null,null,null,null,null,"Heure réelle :",null,null,null,null,"Division :",null,null,null,"Phase :",null,null,null,"Journée :"]
[null,"Lieu :",null,null,null,null,null,null,null,null,null,null,null,null,null,null,null,null,null,null,null,null,null,null,null,null,null,{"$f":"HYPERLINK(\"mailto:fdm-tennis-de-table@fsgt75.org\",\"fdm-tennis-de-table@fsgt75.org\")","v":"fdm-tennis-de-table@fsgt75.org"}]
[]
[null,null,"Club :",null,null,null,null,null,"N°",null,null,null,null,null,null,null,"Club :",null,null,null,null,null,"N°"]
[null,"Licence",null,null,"NOM - Prénom",null,null,null,null,null,null,null,null,"Cla",null,"Licence",null,null,"NOM - Prénom",null,null,null,null,null,null,null,null,"Cla."]
[null,null,null,"A",null,null,null,null,null,null,null,null,null,null,null,null,null,"X"]
[null,null,null,"B",null,null,null,null,null,null,null,null,null,null,null,null,null,"Y"]
[null,null,null,"C",null,null,null,null,null,null,null,null,null,null,null,null,null,"Z"]
[]
[null,null,"Scores",null,null,null,null,null,null,null,null,null,null,null,"ABC",null,null,null,"XYZ"]
[null,null,null,null,null,null,null,null,null,null,null,null,null,null,"A",null,null,null,"X"]
[null,null,null,null,null,null,null,null,null,null,null,null,null,null,"B",null,null,null,"Y"]
[null,null,null,null,null,null,null,null,null,null,null,null,null,null,"C",null,null,null,"Z"]
[null,null,null,null,null,null,null,null,null,null,null,null,null,null,"B",null,null,null,"X"]
[null,null,null,null,null,null,null,null,null,null,null,null,null,null,"ABC",null,null,null,"XYZ"]
[null,null,null,null,null,null,null,null,null,null,null,null,null,null,"A",null,null,null,"Z"]
[null,null,null,null,null,null,null,null,null,null,null,null,null,null,"C",null,null,null,"Y"]
[null,null,null,null,null,null,null,null,null,null,null,null,null,null,"B",null,null,null,"Z"]
[null,null,null,null,null,null,null,null,null,null,null,null,null,null,"C",null,null,null,"X"]
[null,null,null,null,null,null,null,null,null,null,null,null,null,null,"A",null,null,null,"Y"]
[null,null,null,null,null,null,null,null,null,null,null,null,null,null,"Total point-partie :"]
[null,null,null,null,null,null,null,null,null,null,null,null,null,null,"Total sets :"]
[null,null,null,null,null,null,null,null,null,null,null,null,null,null,"Total point-jeu :"]

{"sheet":"Feuil5","index":4,"n_rows":19,"n_cols":36,"rows_kept":19,"cut":false,"hidden":false,"merged":[[16,31,16,38]]}
[]
[]
[]
[]
[]
[]
[]
[]
[]
[]
[]
[]
[]
[]
[]
[]
[]
[null,null,null,null,null,null,null,null,null,null,null,null,null,null,null,null,null,null,null,null,null,null,null,null,null,null,null,null,null,null,null,"Club",null,null,null,"Club"]
[null,null,null,null,null,null,null,null,null,null,null,null,null,null,null,null,null,null,null,null,null,null,null,null,null,null,null,null,null,null,null,{"$f":"IF(ISBLANK(Feuil1!G7),\" \",VLOOKUP(Feuil1!G7,ordreclubs,2,FALSE))","v":0},null,null,null,{"$f":"IF(ISBLANK(Feuil1!U7),\" \",VLOOKUP(Feuil1!U7,ordreclubs,2,FALSE))","v":0}]